Cogmind - Beta 16.1 @@@ ROGUE MODE // 2026.04.17 @ 23:55:32 Player: Thqwib-Linux Result: Destroyed by MAIN.C with Improved Heavy Machine Gun Performance ------------- Evolutions (9) 4500 Regions Visited (37) 7400 Robots Destroyed (366) 1830 Value Destroyed (15712) 15712 Prototype IDs (72) 1440 Alien Tech Used (0) 0 Bonus (21268) 21268 TOTAL SCORE: 52150 Bonus ------- High Alert Combat Kills 2585 Follower Combat Kills 1777 Entered Garrisons 800 Entered DSFs 1000 Network Hubs Disabled 200 Aligned with FarCom 300 Met Data Miner 300 Acquired ECA 300 Met Zhirov 300 Met Warlord at Base 500 MAIN.C Attacked Warlord 500 Built Enhanced Grunts 300 Met R17 at Cetus 500 Destroyed MAIN.C Guards 500 Met MAIN.C 5000 Destroyed MAIN.C Shell 5000 Met Warlord at Command 2000 Friendly Fire -594 Cogmind --------- Core Integrity 0/1600 Matter 300/300 Energy 98/100 System Corruption 16% Temperature Cool (0) Movement Core (50) Location -1/Command Parts ------- > --- POWER (2) -------- (None) > --- PROPULSION (7) --- (None) > --- UTILITY (10) ----- Experimental Core Analyzer Improved Armor Integrity Analyzer > --- WEAPON (6) ------- (None) > --- INVENTORY (5) ---- Quantum Reactor Medium Storage Unit Long-range Tractor Beam Peak State ------------ > --- POWER ------------ Quantum Reactor Quantum Reactor > --- PROPULSION ------- Multireflex Exoskeleton Enhanced Biometal Leg Enhanced Biometal Leg Enhanced Biometal Leg Heavy Shield Leg > --- UTILITY ---------- Experimental Cooling System Medium Storage Unit Experimental Targeting Computer Experimental Core Analyzer Improved Armor Integrity Analyzer Improved Utility Shielding Centrium Light Armor Plating Advanced Powered Armor Advanced Force Field Ghost Barrier > --- WEAPON ----------- Helical Railgun Helical Railgun Helical Railgun Linear Accelerator Linear Accelerator Linear Accelerator > --- INVENTORY -------- Light Quantum Reactor Multireflex Exoskeleton Enhanced Biometal Leg Improved Shock Absorption System Advanced Hardlight Generator Improved Hacking Suite Long-range Tractor Beam Helical Railgun Micro-nuke Launcher [Rating: 202] Favorites ----------- Power Micro Nuclear Core Engine Improved Ion Engine Power Core Micro Nuclear Core Reactor Quantum Reactor Propulsion Cooled VTOL Module Treads Armored Treads Leg Carbon-fiber Leg Wheel Compact Wheel Flight Unit Cooled VTOL Module Utility Advanced Targeting Computer Device Experimental Cooling System Storage Large Storage Unit Processor Advanced Targeting Computer Hackware Ghost Barrier Protection Hardened Medium Armor Plating Weapon XL Autogun Subcomponent Energy Gun Particle Gun Energy Cannon Cooled Nova Cannon Ballistic Gun XL Autogun Subcomponent Ballistic Cannon Linear Accelerator Launcher Grenade Launcher Impact Weapon Powered Hammer Slashing Weapon Axe Build | -11 -10 -10 -9 -9 -9 -8 -8 -8 -8 -8 -8 -8 -8 -7 -7 -7 -6 -6 -6 -6 -6 -6 -5 -5 -5 -4 -4 -4 -4 -4 -4 -3 -3 -3 -2 -1 -1 ------- Run | Yrd Mat Min Mat Min Exi Min Mat Gar Mat Gar Mat Gar Mat Fac Low Dat Pro Fac Ext Cet Arc Hub Fac DSF Gar Fac Was Fac Upp Upp War Pro Res DSF Res Acc Com Slots Evolved 18 | . . . 2 . . . 2 . . . . . . 2 . . . 2 . . . . 2 . . 2 . . . . . . 2 . 2 2 . Power 1 | . . . . . . . . . . . . . . . . . . . . . . . . . . . . . . . . . 1 . . . . Propulsion 5 | . . . 1 . . . 1 . . . . . . 1 . . . . . . . . 1 . . . . . . . . . 1 . . . . Utility 8 | . . . 1 . . . . . . . . . . . . . . 2 . . . . 1 . . 2 . . . . . . . . 2 . . Weapon 4 | . . . . . . . 1 . . . . . . 1 . . . . . . . . . . . . . . . . . . . . . 2 . Parts Attached 258 | 4 10 . 21 1 1 1 25 5 . 17 14 21 5 3 . 1 1 12 1 3 . 1 2 2 1 2 2 9 1 1 11 2 1 1 42 13 21 Power 29 | . 1 . 3 . . . 2 . . 3 1 2 1 . . . 1 1 . . . . . 1 . . . 1 . . 2 . . . 6 1 3 Engine 7 | . 1 . 3 . . . . . . 1 . . . . . . 1 . . . . . . . . . . . . . 1 . . . . . . Core 11 | . . . . . . . 2 . . 2 1 2 1 . . . . 1 . . . . . 1 . . . 1 . . . . . . . . . Reactor 11 | . . . . . . . . . . . . . . . . . . . . . . . . . . . . . . . 1 . . . 6 1 3 Propulsion 69 | 3 2 . 10 . . . 9 2 . 7 7 2 3 1 . . . 2 . . . . 2 1 . . . 1 . . 2 . . 1 10 1 3 Treads 16 | 1 . . 8 . . . . . . . 5 2 . . . . . . . . . . . . . . . . . . . . . . . . . Leg 28 | . . . . . . . 8 2 . 7 . . . . . . . . . . . . . . . . . . . . . . . . 7 1 3 Wheel 7 | 2 2 . 2 . . . . . . . 1 . . . . . . . . . . . . . . . . . . . . . . . . . . Hover . | . . . . . . . . . . . . . . . . . . . . . . . . . . . . . . . . . . . . . . Flight 18 | . . . . . . . 1 . . . 1 . 3 1 . . . 2 . . . . 2 1 . . . 1 . . 2 . . 1 3 . . Utility 89 | 1 4 . 4 1 . 1 5 3 . 2 3 4 1 1 . . . 5 1 3 . 1 . . . 2 1 7 1 . 7 2 1 . 15 5 8 Device 33 | 1 . . . . . . 1 . . . . 1 . . . . . 1 1 2 . 1 . . . . . 3 1 . 3 2 . . 8 3 5 Storage 6 | . 2 . . . . . 1 . . . 1 . 1 . . . . . . . . . . . . . . . . . . . . . 1 . . Processor 18 | . 2 . . 1 . 1 1 . . . 1 . . . . . . 1 . 1 . . . . . 1 . 3 . . 3 . . . 2 1 . Hackware 8 | . . . . . . . . . . . . . . 1 . . . 2 . . . . . . . . . 1 . . 1 . . . 2 1 . Protection 24 | . . . 4 . . . 2 3 . 2 1 3 . . . . . 1 . . . . . . . 1 1 . . . . . 1 . 2 . 3 Artifact . | . . . . . . . . . . . . . . . . . . . . . . . . . . . . . . . . . . . . . . Weapon 71 | . 3 . 4 . 1 . 9 . . 5 3 13 . 1 . 1 . 4 . . . . . . 1 . 1 . . 1 . . . . 11 6 7 Energy Gun 7 | . 2 . . . . . . . . 1 1 1 . . . . . . . . . . . . . . . . . . . . . . 1 . 1 Energy Cannon 2 | . . . . . . . . . . . . . . . . . . . . . . . . . . . . . . . . . . . . . 2 Ballistic Gun 50 | . 1 . 4 . 1 . 7 . . 3 2 11 . 1 . . . 4 . . . . . . 1 . 1 . . . . . . . 6 5 3 Ballistic Cannon 6 | . . . . . . . . . . . . . . . . . . . . . . . . . . . . . . . . . . . 4 1 1 Launcher 3 | . . . . . . . 1 . . . . 1 . . . . . . . . . . . . . . . . . 1 . . . . . . . Special Weapon . | . . . . . . . . . . . . . . . . . . . . . . . . . . . . . . . . . . . . . . Impact Weapon 1 | . . . . . . . . . . . . . . . . 1 . . . . . . . . . . . . . . . . . . . . . Slashing Weapon 2 | . . . . . . . 1 . . 1 . . . . . . . . . . . . . . . . . . . . . . . . . . . Piercing Weapon . | . . . . . . . . . . . . . . . . . . . . . . . . . . . . . . . . . . . . . . Special Melee Weapon . | . . . . . . . . . . . . . . . . . . . . . . . . . . . . . . . . . . . . . . Unidentified Prototypes 28 | . . . 1 . . . 1 . . . 1 . . . . . . 2 . . . . . . . . . 2 . . 6 . . . 8 3 4 Parts Lost 54 | . 1 . . . . . 1 1 . 4 . 2 1 . . . . 1 . . . . . 1 2 . . 6 . . . . . 3 . . 31 Power 4 | . . . . . . . . . . 1 . . . . . . . . . . . . . 1 . . . . . . . . . . . . 2 Propulsion 13 | . 1 . . . . . 1 1 . . . . 1 . . . . . . . . . . . . . . 2 . . . . . . . . 7 Utility 20 | . . . . . . . . . . . . 1 . . . . . 1 . . . . . . 1 . . 4 . . . . . 2 . . 11 Weapon 17 | . . . . . . . . . . 3 . 1 . . . . . . . . . . . . 1 . . . . . . . . 1 . . 11 Highest Loss Streak 25 | . 1 . . . . . 1 1 . 1 . 2 1 . . . . 1 . . . . . 1 2 . . 4 . . . . . 3 . . 25 To Critical Strikes 1 | . . . . . . . . . . . . . . . . . . . . . . . . . . . . . . . . . . . . . 1 Average Backups 9 | 3 6 12 14 15 13 12 11 12 12 11 12 11 9 4 5 5 5 4 5 5 5 5 5 4 4 4 5 4 5 5 5 5 5 4 7 8 7 Power . | 1 1 1 1 1 1 1 1 1 1 1 1 1 . . 1 1 1 1 1 1 1 1 1 . . . . . 1 1 . . . . . 1 1 Propulsion 2 | 2 1 2 2 3 4 4 4 4 4 4 4 5 3 . . . . . . . . . . . . . . . . . . . . . 2 1 1 Utility 2 | . 2 5 4 3 3 3 3 4 4 4 4 3 3 1 1 1 1 . 1 1 1 1 1 . 1 1 1 1 1 1 1 2 2 1 1 3 3 Weapon 2 | . 1 4 6 7 5 4 3 3 3 2 2 2 1 1 2 2 2 2 2 2 2 2 2 2 2 2 2 2 2 2 2 2 2 1 2 2 2 Tool/Special . | . . . . . . . . . . . . . . . . . . . . . . . . . . . . . . . . . . . . . . Unused Backups 43 | 9 1 . 7 . 3 1 4 . 1 . 4 . . 1 1 . . 1 1 . . . . . . . . 1 . . . . . . 4 . 4 Power 7 | 1 . . 2 . . . 1 . . . . . . . . . . . . . . . . . . . . . . . . . . . 1 . 2 Propulsion 12 | 4 . . . . . 1 1 . 1 . 4 . . . . . . . . . . . . . . . . . . . . . . . 1 . . Utility 8 | 1 . . 1 . . . 1 . . . . . . 1 . . . . 1 . . . . . . . . . . . . . . . 1 . 2 Weapon 15 | 3 1 . 4 . 3 . 1 . . . . . . . . . . 1 . . . . . . . . . 1 . . . . . . 1 . . Tool/Special 1 | . . . . . . . . . . . . . . . 1 . . . . . . . . . . . . . . . . . . . . . . Average Slot Usage (%) 93 | . 98 100 99 100 100 100 98 100 100 99 99 99 99 76 76 76 76 74 89 93 93 93 85 93 90 79 89 86 76 78 87 92 82 82 85 91 86 Engine 1 | . 14 14 11 11 11 11 . . . 1 . . . . . . 6 . . . . . . . . . . . . . . . . . . . . Core 4 | . . . . . . . 8 9 9 7 9 9 9 7 7 7 . 5 6 6 6 6 5 5 5 5 5 5 5 5 1 . . . . . . Reactor 2 | . . . . . . . . . . . . . . . . . . . . . . . . . . . . . . . 3 5 4 4 7 8 7 Treads 6 | . 13 14 21 22 22 22 1 . . . 22 29 18 . . . . . . . . . . . . . . . . . . . . . . . . Leg 13 | . . . . . . . 33 36 36 36 7 . . . . . . . . . . . . . . . . . . . . . . . 15 20 19 Wheel 2 | . 13 14 11 11 11 11 . . . . 6 6 . . . . . . . . . . . . . . . . . . . . . . . . . Flight 6 | . . . . . . . . . . . . . 16 38 38 38 38 31 26 26 26 26 26 29 29 26 26 24 15 15 22 26 23 23 4 . . Device 5 | . 9 . . . . . . . . . . . 3 7 7 7 7 6 9 13 13 13 11 16 14 10 10 8 13 15 15 19 16 13 9 7 13 Storage 6 | . 14 14 11 11 11 11 9 9 9 9 9 9 9 . . . . . . . . . . . . . . . . . . . . . 2 4 3 Processor 9 | . 4 14 11 11 11 11 9 9 9 9 9 9 9 7 7 7 7 6 6 12 13 13 11 11 11 10 15 14 10 10 14 15 11 9 12 12 11 Hackware 2 | . . . . . . . . . . . . . . 6 7 7 7 12 6 6 6 6 5 5 5 5 5 6 10 10 6 5 4 4 7 4 . Protection 6 | . . . 11 11 11 11 8 9 9 9 8 8 5 . . . . 2 6 . . . . . . . 5 4 . . . . 2 6 6 12 6 Ballistic Gun 20 | . 21 14 21 22 22 22 26 25 27 21 22 25 27 7 7 7 7 6 26 26 26 26 23 23 22 21 21 19 15 15 15 15 14 14 8 10 22 Ballistic Cannon 1 | . . . . . . . . . . . . . . . . . . . . . . . . . . . . . . . . . . . 7 13 . Peak Build Rating 202 | 7 8 8 13 13 17 19 38 39 39 39 38 43 45 75 76 76 77 96 76 76 76 76 88 89 88 89 97 105 92 95 125 123 123 130 182 202 202 Average Rating 80 | 6 7 8 11 13 14 18 34 38 38 33 33 38 39 73 75 69 76 80 74 74 76 75 81 87 83 81 92 94 90 92 109 121 115 127 148 198 190 On Entrance 68 | 6 7 8 8 13 13 17 19 38 39 39 34 36 36 45 75 76 76 77 73 76 76 76 76 85 88 79 89 94 85 92 92 116 123 113 124 182 199 Avg Prop Armor Cover (%) 14 | 12 13 14 12 15 15 15 13 . . . 19 20 . . . 1 . . . . . . . . . . . 1 . . . . . . . . . Naked Turns . | . . . . . . . . . . . . . . . . . . . . . . . . . . . . . . . . . . . . . . Heaviest Build 149 | 12 27 27 35 35 36 36 43 43 39 40 42 51 40 22 22 22 25 25 22 22 21 22 22 23 22 27 30 30 21 29 37 28 30 48 129 149 145 Greatest Support 186 | 16 16 16 40 16 16 16 60 60 57 57 80 80 80 26 26 28 34 34 28 22 22 28 35 43 43 35 35 36 29 25 49 39 49 57 186 186 186 Greatest Overweight (x) 4 | 1 1 1 2 2 2 2 2 . . . 3 4 1 . . . . . . . . . . 1 . . . . . 1 . . . . 1 . 4 Average Overweight (x) . | . . 1 1 2 2 2 . . . . 1 2 . . . . . . . . . . . . . . . . . . . . . . . . . Largest Inventory Capacity 15 | 8 15 15 15 15 15 15 15 15 15 15 15 15 15 10 5 5 5 5 5 5 5 5 5 5 5 5 5 5 5 5 5 5 5 5 10 10 10 Average Capacity 11 | 8 9 15 15 15 15 15 15 15 15 15 15 15 14 5 5 5 5 5 5 5 5 5 5 5 5 5 5 5 5 5 5 5 5 5 8 10 9 Most Carried 15 | 7 12 13 15 15 15 15 15 15 15 15 15 15 15 10 5 5 5 5 5 5 5 5 5 5 4 5 5 5 5 5 5 5 5 5 10 10 10 Average Carried 10 | 3 6 12 14 14 14 15 14 15 14 14 14 14 12 4 5 4 5 4 4 5 5 5 5 3 4 4 5 4 5 5 4 5 5 4 8 9 8 Final Capacity 15 | 8 15 15 15 15 15 15 15 15 15 15 15 15 10 5 5 5 5 5 5 5 5 5 5 5 5 5 5 5 5 5 5 5 5 5 10 10 5 Final Carried 15 | 3 12 13 15 15 15 15 15 15 15 15 15 15 9 5 5 5 5 5 5 5 5 5 5 4 4 5 5 5 5 5 5 5 5 5 10 10 3 Class Distribution -------------------- 24% | Skirmisher 11% | Scavenger-Skirmisher 10% | Sprinter 10% | Scavenger-Executioner 8% | Mutant 7% | Scavenger-Mutant 7% | Hacker-Executioner 4% | Hacker-Sprinter 3% | Hacker-Tank 3% | Commander-Sprinter Dominant Class ---------------- Mutant | -10/Materials Mutant | -10/Mines Mutant | -9/Materials Scavenger-Mutant | -9/Mines Scavenger-Mutant | -9/Exiles Scavenger-Mutant | -8/Mines Skirmisher | -8/Materials Skirmisher | -8/Garrison Skirmisher | -8/Materials Scavenger-Skirmisher | -8/Garrison Skirmisher | -8/Materials Skirmisher | -8/Garrison Scavenger-Skirmisher | -8/Materials Sprinter | -7/Factory Sprinter | -7/Lower Caves Sprinter | -7/Data Miner Sprinter | -6/Proximity Caves Hacker-Sprinter | -6/Factory Sprinter | -6/Extension Commander-Sprinter | -6/Cetus Commander-Sprinter | -6/Archives Commander-Sprinter | -6/Hub_04(d) Sprinter | -5/Factory Sprinter | -5/DSF Sprinter | -5/Garrison Sprinter | -4/Factory Sprinter | -4/Waste Scout | -4/Factory Sprinter | -4/Upper Caves Sprinter | -4/Upper Caves Hacker-Sprinter | -4/Warlord Hacker-Sprinter | -3/Proximity Caves Hacker-Sprinter | -3/Research Hacker-Sprinter | -3/DSF Hacker-Tank | -2/Research Hacker-Executioner | -1/Access Scavenger-Executioner | -1/Command Resources | -11 -10 -10 -9 -9 -9 -8 -8 -8 -8 -8 -8 -8 -8 -7 -7 -7 -6 -6 -6 -6 -6 -6 -5 -5 -5 -4 -4 -4 -4 -4 -4 -3 -3 -3 -2 -1 -1 ----------- Run | Yrd Mat Min Mat Min Exi Min Mat Gar Mat Gar Mat Gar Mat Fac Low Dat Pro Fac Ext Cet Arc Hub Fac DSF Gar Fac Was Fac Upp Upp War Pro Res DSF Res Acc Com Matter Collected 16607 | 344 285 39 620 44 . 84 1194 709 444 818 534 1595 183 257 . . 41 354 805 370 . 186 . 80 319 . . 309 111 2 200 62 57 10 981 1896 3674 Remotely 4348 | . . . . . . . . . . . . . . . . . . . . . . . . . . . . . . . . . . . . 1028 3320 Salvage Created 16463 | 199 619 . 1017 48 . 136 1280 762 502 568 735 1645 260 208 . . 138 346 1373 151 . 210 . 80 93 . . 408 . . . . 175 . 397 1686 3427 Parts 871 | 14 37 . 60 5 . 8 94 39 33 37 37 119 10 10 . . 13 20 53 8 . 18 . 8 5 . . 19 . . . . 6 . 8 88 122 Haulers Intercepted 23 | . 2 . 2 . . . 6 . . . 2 . . 1 . . . 1 4 . . 1 . . . . . 2 . . . . . . 1 1 . Recyclers Shooed 12 | 1 3 . 1 1 . . 2 . . . 1 . . . . . . . . . . . . . . . . . . . . . . . . 1 2 Parts Field Recycled . | . . . . . . . . . . . . . . . . . . . . . . . . . . . . . . . . . . . . . . Retrieved Matter . | . . . . . . . . . . . . . . . . . . . . . . . . . . . . . . . . . . . . . . Parts Self-Destructed 13 | . . . . . . . . . . . . . . . . . 13 . . . . . . . . . . . . . . . . . . . . Prevented . | . . . . . . . . . . . . . . . . . . . . . . . . . . . . . . . . . . . . . . Parts Restored . | . . . . . . . . . . . . . . . . . . . . . . . . . . . . . . . . . . . . . . Kills | -11 -10 -10 -9 -9 -9 -8 -8 -8 -8 -8 -8 -8 -8 -7 -7 -7 -6 -6 -6 -6 -6 -6 -5 -5 -5 -4 -4 -4 -4 -4 -4 -3 -3 -3 -2 -1 -1 ------- Run | Yrd Mat Min Mat Min Exi Min Mat Gar Mat Gar Mat Gar Mat Fac Low Dat Pro Fac Ext Cet Arc Hub Fac DSF Gar Fac Was Fac Upp Upp War Pro Res DSF Res Acc Com Combat Hostiles Destroyed 267 | . 12 . 21 2 . 4 25 21 13 18 13 35 4 2 . . 6 3 12 2 . 3 . 1 4 . . 4 . . . . . . 3 19 40 Melee 1 | . . . . . . . . . . 1 . . . . . . . . . . . . . . . . . . . . . . . . . . . Guns 237 | . 12 . 21 2 . 4 23 13 13 14 13 32 4 2 . . 6 3 12 2 . 3 . 1 4 . . 4 . . . . . . 1 8 40 Cannons 13 | . . . . . . . . . . . . . . . . . . . . . . . . . . . . . . . . . . . 2 11 . AOE 16 | . . . . . . . 2 8 . 3 . 3 . . . . . . . . . . . . . . . . . . . . . . . . . Classes Destroyed 19 | 2 4 . 3 . . . 2 1 1 2 . . . . . . 1 . . . . . . 1 . . . . . . . . . . . . 2 Worker 23 | . . . 2 1 . . 5 . . . . . . . . . . 1 . . . 1 . . . . . . . . . . 1 . 2 6 4 Builder 8 | . . . . . . . . . 1 . . . . . . . . 1 . . . 1 . . . . . . . . . . . . . 5 . Tunneler 5 | 5 . . . . . . . . . . . . . . . . . . . . . . . . . . . . . . . . . . . . . Hauler 23 | . 2 . 2 . . . 6 . . . 2 . . 1 . . . 1 4 . . 1 . . . . . 2 . . . . . . 1 1 . Recycler 10 | 1 3 . 1 . . 1 1 . . . . . . . . . . . 1 . . . . . . . . . . . . . 1 . . 1 . Mechanic 1 | . . . . . . . . . . . . . . . . . . . . . . . . . . . . . . . . . . . . . 1 Operator 7 | . 1 . . . . . 1 . . . . . . . . . . 1 1 . . . . . . . . . . . . . . . 1 2 . Watcher 19 | . . . . . . . 3 1 . . 1 1 1 . . . . . 2 1 . 1 . . . . . . . . . . . . 2 4 2 Swarmer 70 | . 6 . 5 2 . 4 13 3 5 5 2 7 . . . . 5 . . . . . . . 4 . . 1 . . . . . . . 1 7 Cutter 6 | . . . . . . . . . . 3 . . . . . . . . . . . 3 . . . . . . . . . . . . . . . Saboteur 2 | . . . . . . . . . . . . . . . . . 1 . . . . . . . . . . . . . . . . . . . 1 Grunt 87 | . 6 . 10 . . . 5 13 5 7 8 11 2 . . . . 3 6 . . . . . . . . . . . . . . . 2 . 9 Brawler 10 | . . . 1 . . . . 3 1 . . 1 1 . . . . . . . . . . . . . . 1 . . . . . . . . 2 Duelist 9 | . . . . . . . 1 . . 1 . 3 . . . . . . 1 . . . . . . . . 1 . . . . . . . . 2 Sentry 35 | . . . 5 . . . 6 1 2 1 3 6 . 2 . . . . 5 . . . . . . . . . . . . . . . . 2 2 Hunter 18 | . . . . . . . . 1 . . . 3 1 . . . . . . . . . . . . . . . . . . . . . 1 6 6 Programmer 26 | . . . . . . . . . . 1 . 4 . . . . . . . . . . . . . . . 1 . . . . . . . 10 10 Heavy 1 | . . . . . . . . . . . . . . . . . . . . . . . . 1 . . . . . . . . . . . . . Cetus Guard 2 | . . . . . . . . . . . . . . . . . . . . 2 . . . . . . . . . . . . . . . . . Butcher 1 | . . . . . . . . . . . . . . . . . . . 1 . . . . . . . . . . . . . . . . . . Fireman 2 | . . . . . . . . . . . . . . . . . . . . . . . . . . . . . . . . . . . . . 2 Best Kill Streak 13 | 2 4 . 6 2 . 5 4 8 6 4 5 3 2 1 . . 3 5 4 2 . 6 . 1 4 . . 2 . . . . 2 . 2 13 7 Combat Bots Only 8 | . 3 . 3 2 . 4 4 8 5 4 2 3 2 1 . . 3 2 3 1 . 3 . 1 4 . . 2 . . . . . . 2 6 5 Max Kills in Single Turn 4 | 1 1 . 2 1 . 1 2 4 1 2 1 2 1 1 . . 1 1 2 1 . 2 . 1 2 . . 1 . . . . 1 . 1 3 4 Gunslinging 3 | . . . 1 . . . 1 . . . . . . . . . . . . . . . . . 1 . . . . . . . . . . . 3 Exploded 2 | . . . . . . . 2 2 . 2 . 2 . . . . . . . . . . . . . . . . . . . . . . . . . Melee 1 | . . . . . . . . . . 1 . . . . . . . . . . . . . . . . . . . . . . . . . . . Uniques/NPCs Destroyed 1 | . . . . . . . . . . . . . . . . . . . . . . . . . . . . . . . . . . . . . 1 MAIN.C Shell (-1/Command) Combat | -11 -10 -10 -9 -9 -9 -8 -8 -8 -8 -8 -8 -8 -8 -7 -7 -7 -6 -6 -6 -6 -6 -6 -5 -5 -5 -4 -4 -4 -4 -4 -4 -3 -3 -3 -2 -1 -1 -------- Run | Yrd Mat Min Mat Min Exi Min Mat Gar Mat Gar Mat Gar Mat Fac Low Dat Pro Fac Ext Cet Arc Hub Fac DSF Gar Fac Was Fac Upp Upp War Pro Res DSF Res Acc Com Hostile Shots Fired 1620 | . 62 . 89 4 . 14 81 45 31 81 44 133 16 6 . 4 52 2 22 11 . 12 . 26 99 . . 31 . . 5 . . 11 10 177 552 Missed 493 | . 12 . 15 1 . 2 19 14 8 26 10 29 3 3 . 3 20 . 13 5 . 9 . 18 61 . . 11 . . 2 . . 4 5 47 153 Hits 1127 | . 50 . 74 3 . 12 62 31 23 55 34 104 13 3 . 1 32 2 9 6 . 3 . 8 38 . . 20 . . 3 . . 7 5 130 399 Melee 21 | . . . 1 . . . 3 . . 2 . 2 . . . . . . . . . 1 . . . . . 5 . . . . . . . . 7 Projectile 1106 | . 50 . 73 3 . 12 59 31 23 53 34 102 13 3 . 1 32 2 9 6 . 2 . 8 38 . . 15 . . 3 . . 7 5 130 392 AOE 8 | . . . . . . . . . . 2 . . . . . . . . . . . . . . . . . . . . . . . . . . 6 Critical Strikes 39 | . 1 . 1 . . . 1 1 . 2 2 2 1 . . . . 1 . 1 . . . . . . . 1 . . 1 . . 2 . 5 17 Actively Blocked 1 | . . . . . . . . . . . . . . . . . . . . 1 . . . . . . . . . . . . . . . . . Part Disruptions 1 | . . . . . . . . . . . . . . . . . . . . . . . . . . . . . . . . . . . . . 1 Damage Taken 21003 | . 535 . 925 27 . 97 916 632 283 894 515 1628 200 44 . 50 386 111 218 119 . 70 . 195 580 . . 622 . . 57 . . 414 259 1747 9479 Core 2852 | . 124 . 214 . . 13 132 27 43 23 79 100 44 . . . 72 53 16 29 . 40 . 20 126 . . 84 . . . . . . . 26 1587 Absorbed by Shields 3301 | . . . . . . . . . . . . . . . . . . . . 39 . . . . 52 . . 69 . . . . . 31 . 860 2250 Redirected to Shielding 326 | . . . . . . . . . . . . . . . . . . . 117 25 . . . . . . . . . . . . . . 25 48 111 Ignored by Resistances 500 | . . . . . . . . . . . . . . . . . . . . . . . . . . . . . . . . . . . . . 500 Regen/Repaired (Parts) 967 | . 122 . . . . . 121 . . . 65 . . . . . . 23 . . . . 20 . . . . 331 . . 38 . . . . . 247 Core Remaining (%) 76 | 100 . 50 . . . 43 . . . . . . 18 . . . 89 . . . . 83 . . 85 . . . . . . 92 . 100 100 . . Volleys Fired 942 | 26 68 . 70 4 . 9 83 45 33 55 46 106 15 8 . . 8 11 60 30 . 13 . 27 12 . . 16 . 2 . . . 2 26 51 116 Largest 6 | 2 2 . 2 2 . 2 3 3 3 3 3 3 3 1 . . 1 1 4 4 . 4 . 4 4 . . 4 . 1 . . . 3 4 6 6 Hottest 384 | 40 60 . 43 43 . 46 75 80 75 113 113 122 79 60 . . 60 60 80 80 . 80 . 80 83 . . 95 . 49 . . . 60 216 292 384 Shots Fired 3015 | 52 133 . 140 8 . 18 235 122 99 138 138 288 43 8 . . 8 11 240 120 . 52 . 108 38 . . 63 . 2 . . . 6 91 250 604 Gun 2772 | 52 133 . 140 8 . 18 228 110 99 134 138 281 43 8 . . 8 11 240 120 . 52 . 108 38 . . 63 . . . . . 6 71 117 546 Cannon 206 | . . . . . . . . . . . . . . . . . . . . . . . . . . . . . . . . . . . 20 133 53 Launcher 37 | . . . . . . . 7 12 . 4 . 7 . . . . . . . . . . . . . . . . . 2 . . . . . . 5 Special . | . . . . . . . . . . . . . . . . . . . . . . . . . . . . . . . . . . . . . . Kinetic 2889 | 52 115 . 140 8 . 18 228 110 99 122 120 270 43 8 . . 8 11 240 120 . 52 . 108 38 . . 63 . . . . . 6 91 250 569 Thermal 89 | . 18 . . . . . . . . 12 18 11 . . . . . . . . . . . . . . . . . . . . . . . . 30 Explosive 37 | . . . . . . . 7 12 . 4 . 7 . . . . . . . . . . . . . . . . . 2 . . . . . . 5 Electromagnetic . | . . . . . . . . . . . . . . . . . . . . . . . . . . . . . . . . . . . . . . Robot Hit Streak 38 | 14 7 . 38 7 . 5 16 16 8 25 20 14 5 6 . . 7 8 13 7 . 4 . 11 5 . . 10 . . . . . 10 11 21 36 Robot Miss Streak 8 | 3 3 . 2 2 . 1 8 2 5 3 4 3 2 1 . . 5 4 8 3 . 4 . 3 3 . . 6 . . . . . 1 4 4 5 Penetration Max 2 | . . . . . . . . . . . . 1 . . . . . . . . . . . . . . . 1 . . . . . . . 1 2 Secondary Targets 36 | . 2 . 2 . . 1 5 1 4 2 1 1 . . . . . . 1 . . . . . 2 . . . . . . . . . . . 14 Max Gunslinging Chain 3 | . 1 . 1 . . 1 1 1 1 1 1 1 . . . . . . 1 . . . . . 1 . . . . . . . . . . . 3 Shots Hit Robots 1795 | 35 81 . 111 5 . 13 147 66 54 97 103 189 26 3 . 1 7 10 113 34 . 19 . 21 12 . . 40 . . . . 2 5 57 118 426 Core Hits 830 | 11 34 . 43 3 . 5 67 46 23 39 34 85 10 6 . . 6 12 57 26 . 9 . 8 5 . . 15 . . . . 1 3 20 65 197 Critical Kills 28 | . . . . 1 . . 1 1 . 1 1 16 . . . . . . . . . . . . . . . . . . . . 1 . . 4 2 Critical Parts Destroyed 50 | . . . 3 . . . 2 . . 2 . 27 . . . . . . . . . . . . . . . . . . . . 1 . . 4 11 Critical Strikes 92 | . . . 4 1 . . 3 1 . 3 1 48 . . . . . . . . . . . . . . . . . . . . 2 . 2 11 16 Burn 1 | . . . . . . . . . . . . 1 . . . . . . . . . . . . . . . . . . . . . . . . . Destroy 83 | . . . 4 1 . . 3 1 . 3 1 47 . . . . . . . . . . . . . . . . . . . . . . . 8 15 Blast 6 | . . . . . . . . . . . . . . . . . . . . . . . . . . . . . . . . . . . 2 3 1 Smash 2 | . . . . . . . . . . . . . . . . . . . . . . . . . . . . . . . . . 2 . . . . Melee Attacks 55 | . . . . . . . 6 5 . 27 . . . . . 1 . 3 . . . . . . . . . 10 . . . . 2 1 . . . Impact 17 | . . . . . . . . . . . . . . . . 1 . 3 . . . . . . . . . 10 . . . . 2 1 . . . Slashing 38 | . . . . . . . 6 5 . 27 . . . . . . . . . . . . . . . . . . . . . . . . . . . Piercing . | . . . . . . . . . . . . . . . . . . . . . . . . . . . . . . . . . . . . . . Sneak Attacks 3 | . . . . . . . . . . . . . . . . 1 . . . . . . . . . . . . . . . . 2 . . . . Combat Hostiles . | . . . . . . . . . . . . . . . . . . . . . . . . . . . . . . . . . . . . . . Follow-up Attacks . | . . . . . . . . . . . . . . . . . . . . . . . . . . . . . . . . . . . . . . Damage Inflicted 39860 | 361 838 . 1499 75 . 197 2426 1866 887 1586 1479 2387 439 244 . 87 200 638 2817 1211 . 503 . 584 300 . . 847 . . . . 229 94 1476 4342 12248 Guns 33749 | 361 838 . 1499 75 . 197 2239 986 887 1368 1479 2143 437 244 . . 200 638 2817 1211 . 503 . 584 300 . . 847 . . . . . 94 902 2342 10558 Cannons 3973 | . . . . . . . . . . . . . . . . . . . . . . . . . . . . . . . . . . . 574 1894 1505 Explosions 1536 | . . . . . . . 187 880 . 139 . 244 . . . . . . . . . . . . . . . . . . . . . . . . 86 Melee 395 | . . . . . . . . . . 79 . . . . . 87 . . . . . . . . . . . . . . . . 229 . . . . Ramming 207 | . . . . . . . . . . . . . 2 . . . . . . . . . . . . . . . . . . . . . . 106 99 Kinetic 36652 | 361 737 . 1499 75 . 197 2239 986 887 1282 1270 2039 437 244 . . 200 638 2817 1211 . 503 . 584 300 . . 847 . . . . . 94 1476 4236 11493 Thermal 1070 | . 101 . . . . . . . . 86 209 104 . . . . . . . . . . . . . . . . . . . . . . . . 570 Explosive 1536 | . . . . . . . 187 880 . 139 . 244 . . . . . . . . . . . . . . . . . . . . . . . . 86 Electromagnetic . | . . . . . . . . . . . . . . . . . . . . . . . . . . . . . . . . . . . . . . Impact 316 | . . . . . . . . . . . . . . . . 87 . . . . . . . . . . . . . . . . 229 . . . . Slashing 79 | . . . . . . . . . . 79 . . . . . . . . . . . . . . . . . . . . . . . . . . . Piercing . | . . . . . . . . . . . . . . . . . . . . . . . . . . . . . . . . . . . . . . Highest Corruption 20 | . . . . . . . . . . 2 2 4 4 . . . . . . . . . . . . . 6 20 20 20 20 . . . . 5 16 Average Corruption 6 | . . . . . . . . . . 1 2 3 4 . . . . . . . . . . . . . 6 9 20 20 20 . . . . 3 10 Corruption Purged . | . . . . . . . . . . . . . . . . . . . . . . . . . . . . . . . . . . . . . . Corruption Blocked . | . . . . . . . . . . . . . . . . . . . . . . . . . . . . . . . . . . . . . . Effects 230 | . . . . . . . . . . 21 9 32 9 . . . . . . . . . . . . . . 22 6 7 1 . . . . 22 101 Message Errors 40 | . . . . . . . . . . 3 3 4 4 . . . . . . . . . . . . . . 4 2 2 . . . . . 4 14 Matter Fused 57 | . . . . . . . . . . 6 1 9 1 . . . . . . . . . . . . . . 3 4 3 . . . . . 7 23 Heat Flow Errors 31 | . . . . . . . . . . 4 1 5 2 . . . . . . . . . . . . . . 5 . 1 . . . . . 2 11 Energy Discharges 29 | . . . . . . . . . . 2 1 4 . . . . . . . . . . . . . . . 3 . . . . . . . 2 17 Parts Rejected 3 | . . . . . . . . . . . . 1 . . . . . . . . . . . . . . . . . . . . . . . . 2 Parts Fused 3 | . . . . . . . . . . . . . . . . . . . . . . . . . . . . 1 . . . . . . . 1 1 Data Loss (minor) 17 | . . . . . . . . . . 3 3 3 . . . . . . . . . . . . . . . . . 1 . . . . . 1 6 Data Loss (major) 6 | . . . . . . . . . . . . 1 . . . . . . . . . . . . . . . 1 . . 1 . . . . . 3 Misfires 5 | . . . . . . . . . . 1 . . . . . . . . . . . . . . . . . 2 . . . . . . . . 2 Alerts 9 | . . . . . . . . . . 1 . 5 . . . . . . . . . . . . . . . . . . . . . . . 1 2 Misdirections 2 | . . . . . . . . . . . . . . . . . . . . . . . . . . . . 2 . . . . . . . . . Weapon Failures 28 | . . . . . . . . . . 1 . . 2 . . . . . . . . . . . . . . 1 . . . . . . . 4 20 Overload Shots 8 | . . . . . . . . . . . . . . . . . . . . . . . . . . . . . . . . . . . . . 8 Overflow Damage 390 | . . . . . . . 9 6 . 22 . . . . . 77 . . . . . . . . . . . . . . . . 95 . 15 143 23 Projectiles 114 | . . . . . . . . . . . . . . . . . . . . . . . . . . . . . . . . . . . 15 99 . Explosions 22 | . . . . . . . 9 6 . 7 . . . . . . . . . . . . . . . . . . . . . . . . . . . Melee 254 | . . . . . . . . . . 15 . . . . . 77 . . . . . . . . . . . . . . . . 95 . . 44 23 Knockbacks 28 | . . . . . . . . . . . . . . . . 1 . . . . . . . . . . . . . . . . . . 1 15 11 Impact 3 | . . . . . . . . . . . . . . . . 1 . . . . . . . . . . . . . . . . . . . . 2 Kinetic 23 | . . . . . . . . . . . . . . . . . . . . . . . . . . . . . . . . . . . 1 13 9 Secondary 2 | . . . . . . . . . . . . . . . . . . . . . . . . . . . . . . . . . . . . 2 . Self-Inflicted Damage 162 | . . . . . . . 37 . . 80 . 40 . . . . . . . . . . . . . . . . . . . . . . . . 5 Shots 6 | . . . . . . . 2 . . 2 . 2 . . . . . . . . . . . . . . . . . . . . . . . . . Rammed 6 | . . . . . . . . . . . . . 1 . . . . . . . . . . . . . . . . . . . . . . . 5 Targets Rammed 13 | . . . . . . . . . . . . . 1 . . . . . . . . . . . . . . . . . . . . . . 3 9 Kicked 7 | . . . . . . . . . . . . . . . . . . . . . . . . . . . . . . . . . . . . 3 4 Crushed . | . . . . . . . . . . . . . . . . . . . . . . . . . . . . . . . . . . . . . . Highest Temperature 424 | . 40 . 21 . . . 101 160 204 267 265 329 232 146 . 159 409 158 162 . . 51 . 35 288 . . 224 2 . 50 . 44 43 76 424 373 Average Temperature 70 | . 17 . 5 . . . 29 57 73 76 88 72 65 48 . 102 178 53 58 . . 26 . 17 79 . . 68 2 . 37 . 26 21 16 56 143 Received Heat Transfer 2735 | . 213 . 336 . . . 270 198 108 324 270 378 81 . . . 57 . 12 9 . 6 . . 30 . . 36 . . 46 . . . . . 361 Effects 10 | . . . . . . . . . . . 1 3 . . . . . . . . . . . . . . . . . . . . . . . 2 4 Shutdowns 2 | . . . . . . . . . . . . . . . . . . . . . . . . . . . . . . . . . . . . 2 . Energy Bleed 2 | . . . . . . . . . . . 1 1 . . . . . . . . . . . . . . . . . . . . . . . . . Interference 4 | . . . . . . . . . . . . 1 . . . . . . . . . . . . . . . . . . . . . . . . 3 Matter Decay 1 | . . . . . . . . . . . . 1 . . . . . . . . . . . . . . . . . . . . . . . . . Short Circuit 1 | . . . . . . . . . . . . . . . . . . . . . . . . . . . . . . . . . . . . . 1 Siege Activations . | . . . . . . . . . . . . . . . . . . . . . . . . . . . . . . . . . . . . . . Martial Activations 39 | . . . . . . . . . . . . . . . . . . . . . . . . . . . . . . . . . . . 3 18 18 Total Turns 1252 | . . . . . . . . . . . . . . . . . . . . . . . . . . . . . . . . . . . 51 271 930 Longest Duration 461 | . . . . . . . . . . . . . . . . . . . . . . . . . . . . . . . . . . . 21 93 461 Shielding Activations . | . . . . . . . . . . . . . . . . . . . . . . . . . . . . . . . . . . . . . . Robots Disrupted . | . . . . . . . . . . . . . . . . . . . . . . . . . . . . . . . . . . . . . . Combat Hostiles . | . . . . . . . . . . . . . . . . . . . . . . . . . . . . . . . . . . . . . . Robots Corrupted 1 | . . . . . . . . . . . . . . . . . . . . . . . . . . . . . . . . . . . . . 1 Combat Hostiles . | . . . . . . . . . . . . . . . . . . . . . . . . . . . . . . . . . . . . . . Parts Fried 6 | . . . . . . . . . . . . . . . . . . . . . . . . . . . . . . . . . . . . 3 3 Impact Corruptions 5 | . . . . . . . . . . . . . . . . 1 . . . . . . . . . . . . . . . . 1 . . 1 2 Robots Melted . | . . . . . . . . . . . . . . . . . . . . . . . . . . . . . . . . . . . . . . Combat Hostiles . | . . . . . . . . . . . . . . . . . . . . . . . . . . . . . . . . . . . . . . Parts Melted 5 | . 1 . . . . . . . . . 1 . . . . . . . . . . . . . . . . . . . . . . . 1 2 . Heat Transferred 1483 | . 225 . . . . . . . . 222 481 259 . . . . . . . . . . . . . . . . . . . . . . . . 296 Parts Sabotaged . | . . . . . . . . . . . . . . . . . . . . . . . . . . . . . . . . . . . . . . Parts Stolen . | . . . . . . . . . . . . . . . . . . . . . . . . . . . . . . . . . . . . . . Parts Stripped . | . . . . . . . . . . . . . . . . . . . . . . . . . . . . . . . . . . . . . . Power Chain Reactions . | . . . . . . . . . . . . . . . . . . . . . . . . . . . . . . . . . . . . . . Alert | -11 -10 -10 -9 -9 -9 -8 -8 -8 -8 -8 -8 -8 -8 -7 -7 -7 -6 -6 -6 -6 -6 -6 -5 -5 -5 -4 -4 -4 -4 -4 -4 -3 -3 -3 -2 -1 -1 ------- Run | Yrd Mat Min Mat Min Exi Min Mat Gar Mat Gar Mat Gar Mat Fac Low Dat Pro Fac Ext Cet Arc Hub Fac DSF Gar Fac Was Fac Upp Upp War Pro Res DSF Res Acc Com Maximum Alert Level 5 | . . . 1 . . . 1 4 3 4 3 5 3 2 . . . 1 . 1 . 2 1 1 2 1 . . . . . . . . . 2 3 Low Security (%) 43 | 100 100 100 70 100 . 100 74 2 . . . . . . . . . 90 100 77 100 55 . 43 22 . 100 100 . . . . 100 100 100 55 . Level 1 12 | . . . 29 . . . 25 25 . . . 1 . 2 . . . 9 . 22 . 21 100 56 37 100 . . . . . . . . . 9 32 Level 2 18 | . . . . . . . . 19 91 24 91 22 . 97 . . . . . . . 23 . . 40 . . . . . . . . . . 34 16 Level 3 16 | . . . . . . . . 51 8 36 8 14 100 . . . . . . . . . . . . . . . . . . . . . . . 50 Level 4 7 | . . . . . . . . 1 . 38 . 43 . . . . . . . . . . . . . . . . . . . . . . . . . Level 5 1 | . . . . . . . . . . . . 18 . . . . . . . . . . . . . . . . . . . . . . . . . High Security . | . . . . . . . . . . . . . . . . . . . . . . . . . . . . . . . . . . . . . . Max Security . | . . . . . . . . . . . . . . . . . . . . . . . . . . . . . . . . . . . . . . Peak Influence 1950 | 10 189 34 329 176 . 85 299 1168 749 1467 726 1950 1000 476 . . . 209 181 253 89 635 301 208 599 314 102 163 . . . . 47 52 58 561 947 Initial 950 | . . 34 9 121 . . 29 185 569 479 715 355 950 422 . . . 201 50 80 89 23 301 168 156 314 102 64 . . . . . 35 12 12 356 Average 450 | 2 75 33 135 155 . 9 149 698 628 982 559 1185 952 424 . . . 153 75 150 80 213 274 193 365 304 99 80 . . . . 28 35 7 230 631 Influence Increases 12932 | 30 365 . 688 70 . 95 884 1013 390 1088 368 1835 187 174 . . 370 174 715 303 . 859 . 50 503 . . 298 30 . . . 77 17 163 998 1188 Destroy 0b10 Robot/C 6360 | . 240 . 480 40 . 80 500 540 260 520 260 860 80 40 . . 120 60 360 160 . 280 . 20 140 . . 80 . . . . . . 60 380 800 Destroy 0b10 Robot/NC 495 | 30 30 . 25 5 . 5 80 5 5 . 15 5 5 5 . . . 20 40 10 . 30 . . . . . 10 . . . . 10 . 30 95 35 Destroy Leader 1072 | . 54 . 114 10 . 10 128 30 60 40 66 70 22 22 . . 10 12 34 . . 86 . . 10 . . 14 . . . . . . 26 120 134 Allied During Kill 835 | . . . 8 . . . . 19 . 46 . 117 . . . . . 19 162 128 . 313 . . 23 . . . . . . . . . . . . Successful Hack 362 | . 11 . 12 . . . 38 28 4 28 9 7 5 30 . . . 28 14 . . 10 . . . . . 14 . . . . 52 . 8 37 27 Select Force Hacks 80 | . . . . . . . . . . . . . . 30 . . . . . . . 50 . . . . . . . . . . . . . . . Disable Machine 285 | . . . . . . . 15 15 . 15 15 30 30 15 . . . 15 . . . . . . . . . 15 . . . . . . 15 45 60 Anti-Garrison Action 1100 | . . . . . . . . 350 . 200 . 550 . . . . . . . . . . . . . . . . . . . . . . . . . Destroy Structure 753 | . . . 4 . . . 48 26 1 104 3 91 . 2 . . . 5 15 5 . 15 . . 15 . . 30 . . . . . 2 24 291 72 Partial Spotted 210 | . . . . . . . . . . . . . 15 30 . . . 15 30 . . 30 . 30 . . . 45 . . . . 15 . . . . Lose Combat Pursuer 1380 | . 30 . 45 15 . . 75 . 60 135 . 105 30 . . . 240 . 60 . . 45 . . 315 . . 90 30 . . . . 15 . 30 60 Influence Decreases 12328 | 30 275 66 400 231 151 18 676 130 821 358 1288 432 1208 637 183 283 50 391 673 225 154 313 374 83 112 305 202 302 114 4 . . 30 42 164 461 1142 Entered New Map 5955 | . . 56 15 191 151 . 48 100 599 258 752 192 1000 507 173 283 . 119 53 65 134 46 314 73 52 285 192 28 34 2 . . . 12 10 9 202 Time Decay 4881 | 30 275 10 345 40 . 18 618 . 222 . 386 . 198 130 10 . 50 222 370 140 20 137 60 . . 20 10 222 80 2 . . 30 . 154 452 630 Lost Part 522 | . . . . . . . 10 10 . 40 . 20 10 . . . . 10 . . . . . 10 20 . . 52 . . . . . 30 . . 310 Lost Ally 670 | . . . 40 . . . . 20 . 60 . 220 . . . . . 40 100 20 . 130 . . 40 . . . . . . . . . . . . Purge Threat 300 | . . . . . . . . . . . 150 . . . . . . . 150 . . . . . . . . . . . . . . . . . . Squads Dispatched 55 | . 2 . 2 . . . . . 2 . 2 . 2 2 . . 1 1 1 . . 10 2 1 . . . 6 . . . . . 2 2 5 12 Investigation 15 | . . . 1 . . . . . . . . . 1 1 . . . . . . . 4 2 . . . . 2 . . . . . . . . 4 Extermination 12 | . . . . . . . . . . . . . . 1 . . . . . . . 1 . . . . . 2 . . . . . . . 3 5 Reinforcement 24 | . 2 . 1 . . . . . 1 . 2 . 1 . . . . 1 1 . . 5 . 1 . . . 2 . . . . . 2 2 2 1 Assault 3 | . . . . . . . . . . . . . . . . . 1 . . . . . . . . . . . . . . . . . . . 2 Garrison 1 | . . . . . . . . . 1 . . . . . . . . . . . . . . . . . . . . . . . . . . . . Intercept . | . . . . . . . . . . . . . . . . . . . . . . . . . . . . . . . . . . . . . . Searches Triggered . | . . . . . . . . . . . . . . . . . . . . . . . . . . . . . . . . . . . . . . Construction Impeded 3 | . . . . . . . . . . . . . . . . . . . 1 . . . . . . . . 1 . . . . . . . 1 . Haulers Reinforced 4 | . . . . . . . . . . . . . . . . . . 1 . . . 1 . . . . . 1 . . . . . . 1 . . Active Scanning Responses . | . . . . . . . . . . . . . . . . . . . . . . . . . . . . . . . . . . . . . . Cargo Convoy Interrupts . | . . . . . . . . . . . . . . . . . . . . . . . . . . . . . . . . . . . . . . Stealth | -11 -10 -10 -9 -9 -9 -8 -8 -8 -8 -8 -8 -8 -8 -7 -7 -7 -6 -6 -6 -6 -6 -6 -5 -5 -5 -4 -4 -4 -4 -4 -4 -3 -3 -3 -2 -1 -1 --------- Run | Yrd Mat Min Mat Min Exi Min Mat Gar Mat Gar Mat Gar Mat Fac Low Dat Pro Fac Ext Cet Arc Hub Fac DSF Gar Fac Was Fac Upp Upp War Pro Res DSF Res Acc Com Distress Signals 40 | . 1 . 1 . . . 2 . 4 . 4 2 3 . . . . . 3 2 . 1 . . . . . 1 . . 1 . . . 8 6 1 Communications Jammed . | . . . . . . . . . . . . . . . . . . . . . . . . . . . . . . . . . . . . . . Distress Signals . | . . . . . . . . . . . . . . . . . . . . . . . . . . . . . . . . . . . . . . Times Spotted 537 | . 23 . 30 3 . 4 41 32 21 33 21 47 13 2 . 4 25 3 20 8 . 20 . 1 32 . 4 15 2 . 13 . . 5 19 27 69 Peak Tracking Total 14 | . 5 . 4 3 . 4 5 6 7 5 3 5 7 1 . 4 10 1 4 5 . 6 . 1 14 . 4 6 2 . 4 . . 4 4 5 7 Tactical Retreats 46 | . 2 . 3 1 . . 3 . 2 5 . 7 2 . . . 4 . 2 . . 1 . . 4 . . 3 1 . . . . 1 . 2 3 Traps | -11 -10 -10 -9 -9 -9 -8 -8 -8 -8 -8 -8 -8 -8 -7 -7 -7 -6 -6 -6 -6 -6 -6 -5 -5 -5 -4 -4 -4 -4 -4 -4 -3 -3 -3 -2 -1 -1 ------- Run | Yrd Mat Min Mat Min Exi Min Mat Gar Mat Gar Mat Gar Mat Fac Low Dat Pro Fac Ext Cet Arc Hub Fac DSF Gar Fac Was Fac Upp Upp War Pro Res DSF Res Acc Com Traps Triggered 27 | . . . . . . . 1 5 . 1 . 3 . 2 . . . . . . . . . 2 5 1 . 5 . . . . . 2 . . . Indirectly . | . . . . . . . . . . . . . . . . . . . . . . . . . . . . . . . . . . . . . . Trap Hack Attempts . | . . . . . . . . . . . . . . . . . . . . . . . . . . . . . . . . . . . . . . Triggered . | . . . . . . . . . . . . . . . . . . . . . . . . . . . . . . . . . . . . . . Disarmed . | . . . . . . . . . . . . . . . . . . . . . . . . . . . . . . . . . . . . . . Reprogrammed . | . . . . . . . . . . . . . . . . . . . . . . . . . . . . . . . . . . . . . . Reused . | . . . . . . . . . . . . . . . . . . . . . . . . . . . . . . . . . . . . . . Traps Extracted . | . . . . . . . . . . . . . . . . . . . . . . . . . . . . . . . . . . . . . . Installed . | . . . . . . . . . . . . . . . . . . . . . . . . . . . . . . . . . . . . . . Triggered . | . . . . . . . . . . . . . . . . . . . . . . . . . . . . . . . . . . . . . . Machines | -11 -10 -10 -9 -9 -9 -8 -8 -8 -8 -8 -8 -8 -8 -7 -7 -7 -6 -6 -6 -6 -6 -6 -5 -5 -5 -4 -4 -4 -4 -4 -4 -3 -3 -3 -2 -1 -1 ---------- Run | Yrd Mat Min Mat Min Exi Min Mat Gar Mat Gar Mat Gar Mat Fac Low Dat Pro Fac Ext Cet Arc Hub Fac DSF Gar Fac Was Fac Upp Upp War Pro Res DSF Res Acc Com Machines Disabled 33 | . . . . . . . 1 6 . 3 1 8 2 1 . 1 . 1 . . . . . . . . . 1 . . . . . . 1 3 4 Max in Single Turn 1 | . . . . . . . 1 1 . 1 1 1 1 1 . 1 . 1 . . . . . . . . . 1 . . . . . . 1 1 1 Garrison Access 4 | . . . . . . . . . . . . . . . . . . . . . . 1 . . . . . . . . . . . . 3 . . Garrison Relay 11 | . . . . . . . . 5 . 2 . 4 . . . . . . . . . . . . . . . . . . . . . . . . . Phase Generator 1 | . . . . . . . . . . . . 1 . . . . . . . . . . . . . . . . . . . . . . . . . Network Hub 1 | . . . . . . . . . . . . . . . . . . . . . . 1 . . . . . . . . . . . . . . . Machines Repaired . | . . . . . . . . . . . . . . . . . . . . . . . . . . . . . . . . . . . . . . Machines Dismantled . | . . . . . . . . . . . . . . . . . . . . . . . . . . . . . . . . . . . . . . Machines Sabotaged 1 | . . . . . . . . . . . . . . . . . . . . . . 1 . . . . . . . . . . . . . . . Overloaded Fab Kills . | . . . . . . . . . . . . . . . . . . . . . . . . . . . . . . . . . . . . . . Hacking | -11 -10 -10 -9 -9 -9 -8 -8 -8 -8 -8 -8 -8 -8 -7 -7 -7 -6 -6 -6 -6 -6 -6 -5 -5 -5 -4 -4 -4 -4 -4 -4 -3 -3 -3 -2 -1 -1 --------- Run | Yrd Mat Min Mat Min Exi Min Mat Gar Mat Gar Mat Gar Mat Fac Low Dat Pro Fac Ext Cet Arc Hub Fac DSF Gar Fac Was Fac Upp Upp War Pro Res DSF Res Acc Com Machines Accessed 111 | . 4 . 3 . 2 . 11 3 3 2 4 1 2 6 . 3 . 8 7 1 . 10 4 . 1 . . 6 . . 5 . 3 . 7 6 9 Terminals 72 | . 3 . 1 . . . 8 3 1 2 2 1 2 2 . . . 5 7 1 . 9 1 . 1 . . 3 . . . . 3 . 4 6 7 Fabricators 6 | . . . . . . . . . . . . . . 1 . . . 2 . . . . 1 . . . . 1 . . . . . . 1 . . Repair Stations 11 | . 1 . 1 . . . 2 . . . 1 . . 1 . . . 1 . . . . 1 . . . . 1 . . . . . . . . 2 Recycling Units 1 | . . . . . . . . . . . . . . 1 . . . . . . . . . . . . . . . . . . . . . . . Scanalyzers 5 | . . . 1 . . . . . 1 . . . . 1 . . . . . . . . 1 . . . . 1 . . . . . . . . . Garrison Access 6 | . . . . . . . 1 . 1 . 1 . . . . . . . . . . 1 . . . . . . . . . . . . 2 . . Total Hacks 316 | . 17 . 8 . 2 . 36 5 7 3 13 4 5 16 . 24 . 19 16 3 . 22 17 . 1 . . 35 . . 8 . 12 . 16 13 14 Successful 164 | . 11 . 7 . 2 . 22 2 5 2 8 1 1 7 . 24 . 6 6 . . 11 8 . 1 . . 15 . . 8 . 5 . 4 4 4 Failed 152 | . 6 . 1 . . . 14 3 2 1 5 3 4 9 . . . 13 10 3 . 11 9 . . . . 20 . . . . 7 . 12 9 10 Catastrophic 39 | . 1 . 1 . . . 2 . 1 . 1 . . . . . . 3 4 2 . 4 . . . . . 2 . . . . 1 . 5 4 8 Database Lockouts . | . . . . . . . . . . . . . . . . . . . . . . . . . . . . . . . . . . . . . . Manual 103 | . 7 . 1 . 1 . 23 . 1 . 8 . 5 6 . . . 6 . 1 . 15 1 . . . . 7 . . 1 . 5 . 4 1 10 Terminals 191 | . 12 . 2 . . . 27 5 1 3 10 4 5 7 . . . 13 16 3 . 21 3 . 1 . . 17 . . . . 12 . 7 13 9 Fabricators 19 | . . . . . . . . . . . . . . 3 . . . 3 . . . . 7 . . . . 4 . . . . . . 2 . . Repair Stations 41 | . 5 . 2 . . . 8 . . . 2 . . 1 . . . 3 . . . . 3 . . . . 12 . . . . . . . . 5 Recycling Units 2 | . . . . . . . . . . . . . . 2 . . . . . . . . . . . . . . . . . . . . . . . Scanalyzers 18 | . . . 4 . . . . . 5 . . . . 3 . . . . . . . . 4 . . . . 2 . . . . . . . . . Garrison Access 11 | . . . . . . . 1 . 1 . 1 . . . . . . . . . . 1 . . . . . . . . . . . . 7 . . Terminal Hacks 80 | . 4 . 1 . 2 . 8 2 . 2 3 1 . 3 . 24 . 1 6 . . 1 1 . 1 . . 2 . . 8 . 3 . 1 4 2 Record 13 | . . . . . 1 . . . . . . . . . . 6 . . . . . . . . . . . . . . 6 . . . . . . Part Schematic 10 | . . . . . . . . . . . . . . . . 10 . . . . . . . . . . . . . . . . . . . . . Robot Schematic 5 | . . . . . . . . . . . . . . . . 5 . . . . . . . . . . . . . . . . . . . . . Robot Analysis 5 | . 2 . . . . . 2 . . . . . . . . . . 1 . . . . . . . . . . . . . . . . . . . Prototype ID Bank 9 | . 2 . 1 . . . 2 . . . . . . 1 . 3 . . . . . . . . . . . . . . . . . . . . . Open Door 12 | . . . . . . . . . . . . 1 . . . . . . 5 . . . . . . . . . . . 2 . . . . 3 1 Open DSF 2 | . . . . . . . . . . . . . . . . . . . . . . . 1 . . . . . . . . . 1 . . . . Branch Access Points 6 | . . . . . . . 1 . . . . . . 1 . . . . . . . . . . . . . 1 . . . . 1 . 1 1 . Emergency Access Points 4 | . . . . . . . . 1 . 1 . . . . . . . . . . . 1 . . 1 . . . . . . . . . . . . Repair Station Index 1 | . . . . . . . . . . . . . . . . . . . . . . . . . . . . . . . . . 1 . . . . Alert Level 4 | . . . . . . . . . . . 2 . . . . . . . . . . . . . . . . 1 . . . . . . . . 1 Unreport Threat 2 | . . . . . . . . . . . 1 . . . . . . . 1 . . . . . . . . . . . . . . . . . . Zone Layout 4 | . . . . . . . 3 . . . . . . 1 . . . . . . . . . . . . . . . . . . . . . . . Patrol Navigation 2 | . . . . . . . . 1 . 1 . . . . . . . . . . . . . . . . . . . . . . . . . . . Proto ID Catalog 1 | . . . . . 1 . . . . . . . . . . . . . . . . . . . . . . . . . . . . . . . . Fabricator Hacks 7 | . . . . . . . . . . . . . . . . . . 2 . . . . 3 . . . . . . . . . . . 2 . . Network Status 2 | . . . . . . . . . . . . . . . . . . 1 . . . . 1 . . . . . . . . . . . . . . Load Schematic 2 | . . . . . . . . . . . . . . . . . . . . . . . 1 . . . . . . . . . . . 1 . . Build 3 | . . . . . . . . . . . . . . . . . . 1 . . . . 1 . . . . . . . . . . . 1 . . Repair Station Hacks 22 | . 4 . 1 . . . 6 . . . 2 . . . . . . 2 . . . . . . . . . 7 . . . . . . . . . Scan Component 13 | . 2 . 1 . . . 3 . . . 1 . . . . . . 1 . . . . . . . . . 5 . . . . . . . . . Repair 9 | . 2 . . . . . 3 . . . 1 . . . . . . 1 . . . . . . . . . 2 . . . . . . . . . Recycling Unit Hacks . | . . . . . . . . . . . . . . . . . . . . . . . . . . . . . . . . . . . . . . Scanalyzer 15 | . . . 4 . . . . . 4 . . . . 2 . . . . . . . . 3 . . . . 2 . . . . . . . . . Insert Component 4 | . . . . . . . . . 1 . . . . 1 . . . . . . . . 1 . . . . 1 . . . . . . . . . Analyze 5 | . . . . . . . . . 2 . . . . 1 . . . . . . . . 1 . . . . 1 . . . . . . . . . Retrieve Study 6 | . . . 4 . . . . . 1 . . . . . . . . . . . . . 1 . . . . . . . . . . . . . . Garrison Access Hacks 5 | . . . . . . . 1 . 1 . 1 . . . . . . . . . . 1 . . . . . . . . . . . . 1 . . Unlock Access 3 | . . . . . . . 1 . 1 . 1 . . . . . . . . . . . . . . . . . . . . . . . . . . Seal Access 2 | . . . . . . . . . . . . . . . . . . . . . . 1 . . . . . . . . . . . . 1 . . Unauthorized Hacks 35 | . 3 . 1 . . . 7 . . . 2 . 1 2 . . . 1 . . . 9 1 . . . . 4 . . . . 2 . . . 2 Terminals 31 | . 3 . 1 . . . 7 . . . 2 . 1 1 . . . 1 . . . 9 . . . . . 3 . . . . 2 . . . 1 Assimilate 1 | . . . . . . . . . . . . . . . . . . . . . . 1 . . . . . . . . . . . . . . . Botnet 26 | . 3 . 1 . . . 7 . . . 2 . 1 1 . . . 1 . . . 4 . . . . . 3 . . . . 2 . . . 1 Sabotage 4 | . . . . . . . . . . . . . . . . . . . . . . 4 . . . . . . . . . . . . . . . Fabricators . | . . . . . . . . . . . . . . . . . . . . . . . . . . . . . . . . . . . . . . Repair Stations 3 | . . . . . . . . . . . . . . . . . . . . . . . 1 . . . . 1 . . . . . . . . 1 Patch 3 | . . . . . . . . . . . . . . . . . . . . . . . 1 . . . . 1 . . . . . . . . 1 Recycling Units 1 | . . . . . . . . . . . . . . 1 . . . . . . . . . . . . . . . . . . . . . . . Tunnel 1 | . . . . . . . . . . . . . . 1 . . . . . . . . . . . . . . . . . . . . . . . Scanalyzers . | . . . . . . . . . . . . . . . . . . . . . . . . . . . . . . . . . . . . . . Garrison Access . | . . . . . . . . . . . . . . . . . . . . . . . . . . . . . . . . . . . . . . Data Cores Recovered 7 | . 1 . . . . . 1 . . . . . . . . . . 1 1 . . . . . . . . . . . . . . . 1 2 . Used 1 | . . . . . . . . . . . . . . . . . . . . . . . . . . . . . . . . . . . 1 . . Hacking Detections 72 | . 4 . 3 . . . 8 2 2 2 3 1 2 5 . . . 7 3 2 . 6 3 . . . . 5 . . . . 1 . 4 2 7 Full Trace Events 3 | . . . . . . . . . . . . . 1 . . . . . . . . . 1 . . . . . . . . . . . . . 1 Feedback Events . | . . . . . . . . . . . . . . . . . . . . . . . . . . . . . . . . . . . . . . Feedback Blocked . | . . . . . . . . . . . . . . . . . . . . . . . . . . . . . . . . . . . . . . Robot Schematics Acquired 5 | . . . . . . . . . . . . . . . . 5 . . . . . . . . . . . . . . . . . . . . . Robots Built 3 | . . . . . . . . . . . . . . . . . . 3 . . . . . . . . . . . . . . . . . . . Authchips . | . . . . . . . . . . . . . . . . . . . . . . . . . . . . . . . . . . . . . . Time 67 | . . . . . . . . . . . . . . . . . . 67 . . . . . . . . . . . . . . . . . . . Total Robot Build Rating 12 | . . . . . . . . . . . . . . . . . . 12 . . . . . . . . . . . . . . . . . . . Part Schematics Acquired 14 | . . . . . . . . . 1 . . . . 1 . 10 . . . . . . 1 . . . . 1 . . . . . . . . . Parts Built 2 | . . . . . . . . . . . . . . . . . . . . . . . 1 . . . . . . . . . . . 1 . . Authchips 1 | . . . . . . . . . . . . . . . . . . . . . . . . . . . . . . . . . . . 1 . . Time 134 | . . . . . . . . . . . . . . . . . . . . . . . 67 . . . . . . . . . . . 67 . . Total Part Build Rating 8 | . . . . . . . . . . . . . . . . . . . . . . . 4 . . . . . . . . . . . 4 . . Part Studies Acquired 6 | . . . 4 . . . . . 1 . . . . . . . . . . . . . 1 . . . . . . . . . . . . . . Parts Repaired 9 | . 2 . . . . . 3 . . . 1 . . . . . . 1 . . . . . . . . . 2 . . . . . . . . . Time 408 | . 52 . . . . . 114 . . . 16 . . . . . . 70 . . . . . . . . . 156 . . . . . . . . . Parts Recycled . | . . . . . . . . . . . . . . . . . . . . . . . . . . . . . . . . . . . . . . Recycled Matter . | . . . . . . . . . . . . . . . . . . . . . . . . . . . . . . . . . . . . . . Retrieved Matter . | . . . . . . . . . . . . . . . . . . . . . . . . . . . . . . . . . . . . . . Retrieved Components . | . . . . . . . . . . . . . . . . . . . . . . . . . . . . . . . . . . . . . . Parts Scanalyzed 4 | . . . . . . . . . 1 . . . . 1 . . . . . . . . 1 . . . . 1 . . . . . . . . . Part Schematics Acquired 4 | . . . . . . . . . 1 . . . . 1 . . . . . . . . 1 . . . . 1 . . . . . . . . . Parts Damaged . | . . . . . . . . . . . . . . . . . . . . . . . . . . . . . . . . . . . . . . Bothacking | -11 -10 -10 -9 -9 -9 -8 -8 -8 -8 -8 -8 -8 -8 -7 -7 -7 -6 -6 -6 -6 -6 -6 -5 -5 -5 -4 -4 -4 -4 -4 -4 -3 -3 -3 -2 -1 -1 ------------ Run | Yrd Mat Min Mat Min Exi Min Mat Gar Mat Gar Mat Gar Mat Fac Low Dat Pro Fac Ext Cet Arc Hub Fac DSF Gar Fac Was Fac Upp Upp War Pro Res DSF Res Acc Com Used RIF Installer . | . . . . . . . . . . . . . . . . . . . . . . . . . . . . . . . . . . . . . . Robots Hacked . | . . . . . . . . . . . . . . . . . . . . . . . . . . . . . . . . . . . . . . Non-combat . | . . . . . . . . . . . . . . . . . . . . . . . . . . . . . . . . . . . . . . Combat . | . . . . . . . . . . . . . . . . . . . . . . . . . . . . . . . . . . . . . . Robot Hacks Applied . | . . . . . . . . . . . . . . . . . . . . . . . . . . . . . . . . . . . . . . Relay Couplers Released 54 | . . . . . . . . 23 . 9 . 20 . . . . . . . . . . . . . . . . . . . . . . 2 . . Machine Destruction 50 | . . . . . . . . 23 . 9 . 16 . . . . . . . . . . . . . . . . . . . . . . 2 . . Programmers 4 | . . . . . . . . . . . . 4 . . . . . . . . . . . . . . . . . . . . . . . . . Fabnet Peak Effective % . | . . . . . . . . . . . . . . . . . . . . . . . . . . . . . . . . . . . . . . Robots Rewired 24 | . . . . . . . . 3 . 3 . 9 . . . . . . 8 . . . . . . . . . 1 . . . . . . . . Allies Hacked 1 | . . . . . . . . . . . . 1 . . . . . . . . . . . . . . . . . . . . . . . . . Hacks Repelled . | . . . . . . . . . . . . . . . . . . . . . . . . . . . . . . . . . . . . . . Allies | -11 -10 -10 -9 -9 -9 -8 -8 -8 -8 -8 -8 -8 -8 -7 -7 -7 -6 -6 -6 -6 -6 -6 -5 -5 -5 -4 -4 -4 -4 -4 -4 -3 -3 -3 -2 -1 -1 -------- Run | Yrd Mat Min Mat Min Exi Min Mat Gar Mat Gar Mat Gar Mat Fac Low Dat Pro Fac Ext Cet Arc Hub Fac DSF Gar Fac Was Fac Upp Upp War Pro Res DSF Res Acc Com Total Allies 45 | . . 3 . . . . . 3 . 3 . 11 . . . . . 3 13 5 . 1 . . 2 . . . 1 . . . . . . . . Largest Group 10 | . . 3 3 . . . . 3 . 3 . 9 . . . . . 3 9 10 9 10 . . 2 . . . 1 1 . . . . . . . Highest-Rated Group 777 | . . 40 40 . . . . 72 . 72 . 123 . . . . . 60 341 777 608 618 . . 190 . . . 49 49 . . . . . . . Highest-Rated Ally 159 | . . 16 16 . . . . 24 . 24 . 31 . . . . . 20 159 159 96 96 . . 95 . . . 49 49 . . . . . . . Initial Warlord ECA Mod 24 | . . . . . . . . . 9 9 15 15 24 23 23 23 22 22 22 22 22 22 21 21 21 20 20 20 20 20 20 19 19 19 18 17 17 Total Orders 5 | . . . . . . . . 2 . . . . . . . . . . . . . 3 . . . . . . . . . . . . . . . STAY 3 | . . . . . . . . 1 . . . . . . . . . . . . . 2 . . . . . . . . . . . . . . . FOLLOW 2 | . . . . . . . . 1 . . . . . . . . . . . . . 1 . . . . . . . . . . . . . . . Ally Attacks 306 | . . . 13 . . . . 14 . 29 . 55 . . . . . 5 80 44 . 52 . . 14 . . . . . . . . . . . . Total Damage 6865 | . . . 139 . . . . 277 . 796 . 825 . . . . . 59 1268 1107 . 1925 . . 469 . . . . . . . . . . . . Kills 57 | . . . 3 . . . . 6 . 8 . 8 . . . . . . 7 7 . 15 . . 3 . . . . . . . . . . . . Allies Corrupted 2 | . . . . . . . . . . . . 1 . . . . . 1 . . . . . . . . . . . . . . . . . . . Allies Melted 4 | . . . . . . . . . . . . . . . . . . . . . . 1 . . . . . . . . . . . . 3 . . Intel | -11 -10 -10 -9 -9 -9 -8 -8 -8 -8 -8 -8 -8 -8 -7 -7 -7 -6 -6 -6 -6 -6 -6 -5 -5 -5 -4 -4 -4 -4 -4 -4 -3 -3 -3 -2 -1 -1 ------- Run | Yrd Mat Min Mat Min Exi Min Mat Gar Mat Gar Mat Gar Mat Fac Low Dat Pro Fac Ext Cet Arc Hub Fac DSF Gar Fac Was Fac Upp Upp War Pro Res DSF Res Acc Com Active Infowar (turns) 3188 | 15 602 . . . . . . . . . 2 . . . . . . . . . . . . . . . . 324 161 186 283 64 22 . 1240 289 . Optics 1242 | . . . . . . . . . . . 2 . . . . . . . . . . . . . . . . . . . . . . . 1240 . . Sensors 1040 | . . . . . . . . . . . . . . . . . . . . . . . . . . . . 324 161 186 283 64 22 . . . . Structural 289 | . . . . . . . . . . . . . . . . . . . . . . . . . . . . . . . . . . . . 289 . Seismic 598 | 15 583 . . . . . . . . . . . . . . . . . . . . . . . . . . . . . . . . . . . . T.N.C. 19 | . 19 . . . . . . . . . . . . . . . . . . . . . . . . . . . . . . . . . . . . Robot Analysis Total 5 | . 2 . . . . . 2 . . . . . . . . . . 1 . . . . . . . . . . . . . . . . . . . Derelict Logs Recovered 8 | . . . . 2 . . . . . . . . . . 2 . 2 . . . . . . . . . . . 2 . . . . . . . . Drone Launches . | . . . . . . . . . . . . . . . . . . . . . . . . . . . . . . . . . . . . . . Drone Recoveries . | . . . . . . . . . . . . . . . . . . . . . . . . . . . . . . . . . . . . . . Exploration | -11 -10 -10 -9 -9 -9 -8 -8 -8 -8 -8 -8 -8 -8 -7 -7 -7 -6 -6 -6 -6 -6 -6 -5 -5 -5 -4 -4 -4 -4 -4 -4 -3 -3 -3 -2 -1 -1 ------------- Run | Yrd Mat Min Mat Min Exi Min Mat Gar Mat Gar Mat Gar Mat Fac Low Dat Pro Fac Ext Cet Arc Hub Fac DSF Gar Fac Was Fac Upp Upp War Pro Res DSF Res Acc Com Turns Passed 21428 | 136 851 20 803 99 257 417 2060 1217 461 1664 907 2122 405 260 25 25 140 466 939 295 50 298 123 115 195 57 27 504 161 186 448 64 78 56 1545 1633 2319 Spaces Moved 20318 | 57 409 17 308 69 210 324 1268 866 305 1169 389 1001 277 971 75 89 401 753 1674 253 44 950 249 194 456 220 90 853 358 315 821 251 293 119 1826 1113 1281 Core 12 | . . . . . . . . . . . . . . . . . . . . . . . . . . . . . . . . . . . . . 12 Treads 591 | . . . 118 . . . 4 . . . 39 332 98 . . . . . . . . . . . . . . . . . . . . . . . . Legs 7088 | . . . . . . . 1207 866 305 1169 122 . . . . . . . . . . . . . . . . . . . . . . . 1037 1113 1269 Wheels 2230 | 57 409 17 190 69 210 324 57 . . . 228 669 . . . . . . . . . . . . . . . . . . . . . . . . . Hover . | . . . . . . . . . . . . . . . . . . . . . . . . . . . . . . . . . . . . . . Flight 10397 | . . . . . . . . . . . . . 179 971 75 89 401 753 1674 253 44 950 249 194 456 220 90 853 358 315 821 251 293 119 789 . . Fastest Speed 11 | 95 95 115 115 120 120 120 120 112 112 105 105 135 14 23 23 14 11 11 16 24 24 16 23 11 11 24 24 17 24 30 11 24 11 15 24 110 50 Average Speed 72 | 99 109 115 159 120 120 120 120 116 112 109 129 147 115 23 23 20 19 22 23 24 24 23 23 23 20 24 24 27 29 32 27 24 23 22 73 116 125 Slowest Speed 330 | 100 115 115 240 120 120 120 260 120 112 120 330 170 167 24 23 23 23 24 24 24 24 24 24 91 24 24 24 30 30 100 30 24 24 25 214 220 250 Overloaded Moves 654 | . . . . . . . . . . . . . 7 . . 24 109 7 16 . . 21 . 12 117 . . 13 20 . 18 . 6 33 8 40 203 Propulsion Burnouts . | . . . . . . . . . . . . . . . . . . . . . . . . . . . . . . . . . . . . . . Robots Hopped 95 | . . . . . . . . . . . . . . 8 . . 7 . 29 . . 27 . . 9 1 2 6 2 . . . . . 4 . . Potential Cave-ins . | . . . . . . . . . . . . . . . . . . . . . . . . . . . . . . . . . . . . . . Cave-ins Triggered 1 | . . . . . . . . . . . . . . . . . . . . . . . . . . . . 1 . . . . . . . . . Exploration Rate (%) 47 | 3 82 6 36 16 60 72 90 81 32 56 43 79 24 28 16 77 60 16 85 56 63 44 6 95 47 5 74 23 54 57 90 47 7 88 44 22 32 Regions Visited 37 Branch Regions 16 Pre-discovered Areas 6 | . . . . 1 1 . . . . . . . . 1 1 1 . . . . . . . . . . . . . . 1 . . . . . . Known Exits Taken 14 | . . . . . . . 1 . 1 . 1 . . 1 . . . 1 . . . 1 1 . . . . 1 1 1 1 1 1 . . 1 . Unknown Exits Taken 15 | 1 1 1 1 1 1 1 . . . . . . 1 . 1 1 1 . 1 1 1 . . . . . . . . . . . . . 1 . . Scrap Searched 12 | . . 1 . 1 . 1 . . . . . . . . . . 2 . . . . . . . . . . . 3 . . 4 . . . . . Spaces Dug 67 | . . . . . . . 6 . . 11 . 9 . . . . . 3 . . . . . . . . . 10 . . . . . 1 . 12 15 Terrain Destroyed 451 | . . . . . . . 57 6 . 32 . 113 . 2 . . 5 4 . . . . . . . . . 15 . 51 . . . 1 7 100 58 Melee 24 | . . . . . . . 6 . . 4 . . . . . . . 3 . . . . . . . . . 10 . . . . . 1 . . . Projectile 140 | . . . . . . . . . . . . 7 . 2 . . 5 1 . . . . . . . . . 5 . . . . . . 7 77 36 AOE 275 | . . . . . . . 51 6 . 28 . 102 . . . . . . . . . . . . . . . . . 51 . . . . . 22 15 Terrain Rammed . | . . . . . . . . . . . . . . . . . . . . . . . . . . . . . . . . . . . . . . Walls Destroyed . | . . . . . . . . . . . . . . . . . . . . . . . . . . . . . . . . . . . . . . Machines Disabled . | . . . . . . . . . . . . . . . . . . . . . . . . . . . . . . . . . . . . . . Actions | -11 -10 -10 -9 -9 -9 -8 -8 -8 -8 -8 -8 -8 -8 -7 -7 -7 -6 -6 -6 -6 -6 -6 -5 -5 -5 -4 -4 -4 -4 -4 -4 -3 -3 -3 -2 -1 -1 --------- Run | Yrd Mat Min Mat Min Exi Min Mat Gar Mat Gar Mat Gar Mat Fac Low Dat Pro Fac Ext Cet Arc Hub Fac DSF Gar Fac Was Fac Upp Upp War Pro Res DSF Res Acc Com Total 25098 | 91 693 17 492 77 216 335 1630 991 371 1415 699 1420 328 1002 82 93 454 1040 2153 472 82 987 311 248 536 222 92 1084 409 394 1044 253 297 144 1976 1303 1645 Wait 2755 | . 185 . 55 2 . . 208 19 29 58 219 149 21 6 6 . 52 250 355 184 39 50 59 22 54 . . 172 52 76 201 . . 1 5 93 133 Move 20106 | 56 408 16 307 68 209 323 1268 864 305 1166 389 1000 276 954 74 88 387 752 1620 252 43 900 248 193 438 218 86 840 353 314 820 250 292 118 1818 1112 1281 Hop 79 | . . . . . . . . . . . . . . 8 . . 6 . 24 . . 22 . . 6 1 1 6 2 . . . . . 3 . . Pick Up 95 | . 10 1 15 1 1 1 3 . 2 . 7 . 1 7 1 . . 2 2 . . . . 1 . 1 1 3 . . . . . 2 15 4 14 Fast Attach 125 | 1 5 . . . . . 10 1 . 4 9 4 . . . 1 . 8 1 1 . 1 1 1 1 2 1 7 1 . 9 2 1 2 36 5 10 Attach 52 | 2 1 . 2 1 . . 1 . . 1 . 1 5 4 . 1 . 2 1 . . . . 2 . . . 1 . . . . . 2 7 3 15 Detach 48 | 2 3 . . 1 . . 2 . . 1 1 1 1 4 . 1 . 2 . . . . . 1 . . . 2 . . 5 . 1 . 10 2 8 Swap 240 | 1 6 . 19 . 2 1 26 23 . 28 9 25 2 1 . . 1 5 . 2 . . 2 . . . 1 4 . 2 3 . . . 11 24 42 Drop 222 | 3 7 . 24 . 4 1 23 4 2 12 19 13 6 10 1 1 . 5 2 3 . 1 1 1 . . 2 3 . . 3 1 1 1 45 6 17 Fire 942 | 26 68 . 70 4 . 9 83 45 33 55 46 106 15 8 . . 8 11 60 30 . 13 . 27 12 . . 16 . 2 . . . 2 26 51 116 Melee 55 | . . . . . . . 6 5 . 27 . . . . . 1 . 3 . . . . . . . . . 10 . . . . 2 1 . . . Ram 5 | . . . . . . . . . . . . . . . . . . . . . . . . . . . . . . . . . . . . . 5 Kick 7 | . . . . . . . . . . . . . . . . . . . . . . . . . . . . . . . . . . . . 3 4 Crush 1 | . . . . . . . . . . . . . 1 . . . . . . . . . . . . . . . . . . . . . . . . Escape Stasis 97 | . . . . . . . . 13 . . . 24 . . . . . . . . . . . . 25 . . 20 . . . . . 15 . . . Rewire 269 | . . . . . . . . 17 . 63 . 97 . . . . . . 88 . . . . . . . . . 1 . 3 . . . . . . Trap . | . . . . . . . . . . . . . . . . . . . . . . . . . . . . . . . . . . . . . . Miscellaneous . | . . . . . . . . . . . . . . . . . . . . . . . . . . . . . . . . . . . . . . Route ------- -11/Scrapyard -10/Materials (discovered 2 exits: *Mat / [*Min]) -10/Mines -9/Materials (discovered 3 exits: *Mat / [*Min x2]) -9/Mines -9/Exiles -8/Mines -8/Materials (discovered 4 exits: *Fac x2 / *Sto / Gar) -8/Garrison (discovered 4 exits: *Mat x4) -8/Materials -8/Garrison (discovered 3 exits: *Mat x3) -8/Materials (discovered 3 exits: *Fac / *Sto / Gar) -8/Garrison (discovered 2 exits: *Mat x2) -8/Materials -7/Factory (discovered 2 exits: *Low x2) -7/Lower Caves -7/Data Miner -6/Proximity Caves -6/Factory (discovered 4 exits: *Fac x2 / [*Low] / *Ext) -6/Extension (discovered 2 exits: *Fac / *Cet) -6/Cetus (discovered 2 exits: *Fac / [*Arc]) -6/Archives -6/Hub_04(d) -5/Factory (discovered 2 exits: [*Upp] / DSF) -5/DSF -5/Garrison (discovered 3 exits: [*Fac x3]) -4/Factory (discovered 3 exits: *Res / *Upp x2) -4/Waste -4/Factory (discovered 3 exits: *Upp x2 / Arm) -4/Upper Caves -4/Upper Caves -4/Warlord -3/Proximity Caves -3/Research (discovered 3 exits: Tes x2 / DSF) -3/DSF -2/Research (discovered 4 exits: *Acc x2 / *Qua x2) -1/Access -1/Command History --------- Turn | Location | Event 20 | -11/Scrapyard | Discovered new exit (range 3) 137 | -11/Scrapyard | Entered Materials 314 | -10/Materials | Build established: Mutant 650 | -10/Materials | Discovered new exit (range 11) 756 | -10/Materials | Discovered new exit (range 11) 791 | -10/Materials | Repaired Lgt. Treads 819 | -10/Materials | Repaired Com. Wheel 988 | -10/Materials | Entered Mines 990 | -10/Mines | Assisted by bots powering up and referring to "LRC-V3" 997 | -10/Mines | Met a Derelict bent on vengeance 1002 | -10/Mines | Discovered new exit (range 5) 1008 | -10/Mines | Entered Materials 1008 | -9/Materials | Accompanied by 3 allies 1008 | -9/Materials | Evolved 2 slots: Propulsion x1, Utility x1 1219 | -9/Materials | Discovered new exit (range 7) 1354 | -9/Materials | Discovered new exit (range 4) 1591 | -9/Materials | Discovered new exit (range 6) 1708 | -9/Materials | Core integrity fell below 50% 1811 | -9/Materials | Entered Mines 1888 | -9/Mines | Learned location of Zion (-6) 1895 | -9/Mines | Learned Materials terminal intel 1904 | -9/Mines | Deemed a non-threat by the Exiles lab entrance 1905 | -9/Mines | Discovered new exit (range 5) 1910 | -9/Mines | Entered Exiles 1940 | -9/Exiles | Met 8R-AWN 1958 | -9/Exiles | Met EX-HEX 1996 | -9/Exiles | Met EX-BIN 2012 | -9/Exiles | Aligned with FarCom system 2014 | -9/Exiles | Given EX-Vault access code 2031 | -9/Exiles | Build established: Scavenger-Mutant 2042 | -9/Exiles | Opened EX-Vault 2056 | -9/Exiles | Found XL Autogun Array 2078 | -9/Exiles | Warned to stay clear of 0b10 Research branches 2114 | -9/Exiles | Met EX-DEC 2155 | -9/Exiles | Discovered new exit (range 12) 2167 | -9/Exiles | Left Exiles lab with XL Autogun Array 2167 | -9/Exiles | Entered Mines 2527 | -8/Mines | Discovered new exit (range 6) 2584 | -8/Mines | Entered Materials 2584 | -8/Materials | Evolved 2 slots: Propulsion x1, Weapon x1 2585 | -8/Materials | Loaded intel: 11 terminal locations 2589 | -8/Materials | Identified exit to Storage 2878 | -8/Materials | Build established: Scavenger-Skirmisher 3140 | -8/Materials | Repaired Carbon-fiber Leg 3287 | -8/Materials | Build established: Skirmisher 3772 | -8/Materials | Discovered new exit (range 10) 3848 | -8/Materials | Repaired Carbon-fiber Leg 3888 | -8/Materials | Repaired Carbon-fiber Leg 4054 | -8/Materials | Discovered new exit (range 7) 4644 | -8/Materials | Identified exit to Garrison 4644 | -8/Materials | Entered Garrison 4660 | -8/Garrison | Triggered checkpoint 4704 | -8/Garrison | Garrison Relay disabled 4820 | -8/Garrison | Triggered checkpoint 4858 | -8/Garrison | Discovered new exit (range 5) 4928 | -8/Garrison | Triggered checkpoint 4980 | -8/Garrison | Triggered checkpoint 5010 | -8/Garrison | Destroyed 8 combat bots 5049 | -8/Garrison | Triggered checkpoint 5101 | -8/Garrison | Garrison Relay disabled 5128 | -8/Garrison | Discovered new exit (range 12) 5172 | -8/Garrison | Triggered checkpoint 5208 | -8/Garrison | Discovered new exit (range 16) 5314 | -8/Garrison | Triggered checkpoint 5353 | -8/Garrison | Garrison Relay disabled 5392 | -8/Garrison | Triggered checkpoint 5415 | -8/Garrison | Garrison Relay disabled 5512 | -8/Garrison | Triggered checkpoint 5617 | -8/Garrison | Discovered new exit (range 14) 5672 | -8/Garrison | Triggered checkpoint 5715 | -8/Garrison | Garrison Relay disabled 5774 | -8/Garrison | Attempted to access garrison exit controls, blocked by remote lockdown 5861 | -8/Garrison | Entered Materials 6251 | -8/Materials | Garrison activated, responded to threat 6322 | -8/Materials | Identified exit to Garrison 6322 | -8/Materials | Entered Garrison 6338 | -8/Garrison | Triggered checkpoint 6401 | -8/Garrison | Garrison Relay disabled 6476 | -8/Garrison | Triggered checkpoint 6606 | -8/Garrison | Discovered new exit (range 5) 6954 | -8/Garrison | Triggered checkpoint 7216 | -8/Garrison | Triggered checkpoint 7230 | -8/Garrison | Garrison Relay disabled 7262 | -8/Garrison | Discovered new exit (range 12) 7411 | -8/Garrison | Triggered checkpoint 7632 | -8/Garrison | Triggered checkpoint 7695 | -8/Garrison | Discovered new exit (range 11) 7726 | -8/Garrison | Attempted to access garrison exit controls, blocked by remote lockdown 7795 | -8/Garrison | Build established: Scavenger-Skirmisher 7900 | -8/Garrison | Attempted to access garrison exit controls, blocked by remote lockdown 7986 | -8/Garrison | Entered Materials 8343 | -8/Materials | Core integrity fell below 50% 8417 | -8/Materials | Repaired Hvy. Assault Rifle 8724 | -8/Materials | Build established: Skirmisher 8877 | -8/Materials | Discovered new exit (range 5) 8889 | -8/Materials | Discovered exit to Storage (range 15) 8893 | -8/Materials | Identified exit to Garrison 8893 | -8/Materials | Entered Garrison 8921 | -8/Garrison | Triggered checkpoint 9006 | -8/Garrison | Garrison Relay disabled 9449 | -8/Garrison | Triggered checkpoint 9487 | -8/Garrison | Triggered checkpoint 9493 | -8/Garrison | Triggered checkpoint 9543 | -8/Garrison | Lost 8 allies 9694 | -8/Garrison | Triggered checkpoint 9792 | -8/Garrison | Triggered checkpoint 9958 | -8/Garrison | Discovered new exit (range 14) 10082 | -8/Garrison | Rescued a captive Derelict 10084 | -8/Garrison | Rescued a captive Derelict 10155 | -8/Garrison | Phase Generator disabled 10510 | -8/Garrison | Discovered new exit (range 12) 10518 | -8/Garrison | Garrison Relay disabled 10551 | -8/Garrison | Triggered checkpoint 10603 | -8/Garrison | Build established: Scavenger-Skirmisher 10653 | -8/Garrison | Garrison Relay disabled 11015 | -8/Garrison | Entered Materials 11218 | -8/Materials | Core integrity fell below 20% 11417 | -8/Materials | Discovered new exit (range 10) 11420 | -8/Materials | Entered Factory 11420 | -7/Factory | Evolved 2 slots: Propulsion x1, Weapon x1 11596 | -7/Factory | Identified exit to Lower Caves 11680 | -7/Factory | Entered Lower Caves 11682 | -7/Lower Caves | Learned 4 Factory zone layouts 11686 | -7/Lower Caves | Met a Warlord Commander 11687 | -7/Lower Caves | Learned location of Warlord (-4) 11688 | -7/Lower Caves | Warlord Commander delivered Encrypted Comm Array 11692 | -7/Lower Caves | Found Encrypted Comm Array 11703 | -7/Lower Caves | A Derelict revealed a hidden shortcut to meet someone special 11705 | -7/Lower Caves | Entered Data Miner 11705 | -7/Data Miner | Discovered new exit (range 6) 11710 | -7/Data Miner | Met Data Miner 11713 | -7/Data Miner | Build established: Sprinter 11714 | -7/Data Miner | Learned location of Section 7 (-2) 11714 | -7/Data Miner | Acquired the access code to Warlord's prototype stash 11717 | -7/Data Miner | Received God Mode back door access code from Data Miner 11721 | -7/Data Miner | Data Conduit disabled 11730 | -7/Data Miner | Entered Proximity Caves 11740 | -6/Proximity Caves | Spotted B-75 Beast 11741 | -6/Proximity Caves | Learned Factory trap positions 11769 | -6/Proximity Caves | Attracted the attention of an 0b10 outpost 11867 | -6/Proximity Caves | Learned Factory terminal intel 11868 | -6/Proximity Caves | Discovered new exit (range 14) 11870 | -6/Proximity Caves | Entered Factory 11870 | -6/Factory | Evolved 2 slots: Utility x2 11871 | -6/Factory | Identified exit to Extension 11872 | -6/Factory | Identified exit to Factory 11873 | -6/Factory | Loaded intel: 82 trap records 11874 | -6/Factory | Loaded intel: 27 terminal locations 11957 | -6/Factory | Repaired Cld. VTOL Module 11972 | -6/Factory | Discovered new exit (range 15) 12108 | -6/Factory | Fabricated B-48 Gladiator? 12188 | -6/Factory | Discovered exit to Factory (range 15) 12254 | -6/Factory | Build established: Hacker-Sprinter 12336 | -6/Factory | Entered Extension 12369 | -6/Extension | Rescued a captive Derelict 12369 | -6/Extension | Rescued a captive Derelict 12763 | -6/Extension | Spotted B-75 Beast 12768 | -6/Extension | Allies destroyed B-75 Beast 12829 | -6/Extension | Spotted B-75 Beast 12836 | -6/Extension | Allies destroyed B-75 Beast 12894 | -6/Extension | Lost 5 allies 12898 | -6/Extension | Rescued a captive Derelict 12906 | -6/Extension | Rescued a captive Derelict 12962 | -6/Extension | Rescued a captive Derelict 12967 | -6/Extension | Watched by a mysterious "MATRIX" hacker. 13145 | -6/Extension | Discovered exit to Factory (range 10) 13145 | -6/Extension | Discovered new exit (range 6) 13165 | -6/Extension | Build established: Sprinter 13180 | -6/Extension | Rescued A7 13275 | -6/Extension | Entered Cetus 13275 | -6/Cetus | Accompanied by 6 allies (A7) 13280 | -6/Cetus | Acquired a Cetus Manufacturing Module code from A7 13287 | -6/Cetus | Spotted Cetus Guard 13287 | -6/Cetus | Spotted Cetus Guard 13293 | -6/Cetus | Spotted Cetus Guard 13294 | -6/Cetus | Spotted Cetus Guard 13295 | -6/Cetus | Allies destroyed Cetus Guard 13305 | -6/Cetus | Allies destroyed Cetus Guard 13308 | -6/Cetus | Destroyed Cetus Guard 13309 | -6/Cetus | Allies destroyed Cetus Guard 13326 | -6/Cetus | Started Cetus Manufacturing Module 13351 | -6/Cetus | Manufactured an Enhanced Grunt 13376 | -6/Cetus | Manufactured an Enhanced Grunt 13401 | -6/Cetus | Manufactured an Enhanced Grunt 13426 | -6/Cetus | Manufactured an Enhanced Grunt 13450 | -6/Cetus | Discovered new exit (range 16) 13451 | -6/Cetus | Manufactured an Enhanced Grunt 13493 | -6/Cetus | Destroyed Cetus Guard 13503 | -6/Cetus | Spotted Cetus Guard 13504 | -6/Cetus | Allies destroyed Cetus Guard 13505 | -6/Cetus | Spotted Cetus Guard 13512 | -6/Cetus | Allies destroyed Cetus Guard 13516 | -6/Cetus | Discovered exit to Factory (range 16) 13518 | -6/Cetus | Met Revision 17 13570 | -6/Cetus | Entered Archives 13570 | -6/Archives | Accompanied by 10 allies (A7) 13574 | -6/Archives | Met Zhirov 13577 | -6/Archives | Discovered new exit (range 13) 13580 | -6/Archives | Reinforcements dispatched to Archives 13620 | -6/Archives | Entered Hub_04(d) 13620 | -6/Hub_04(d) | Accompanied by 9 allies 13693 | -6/Hub_04(d) | Build established: Commander-Sprinter 13828 | -6/Hub_04(d) | Lost 4 allies 13871 | -6/Hub_04(d) | Discovered exit to Factory (range 11) 13904 | -6/Hub_04(d) | Network Hub disabled 13917 | -6/Hub_04(d) | Spotted Lightning 13917 | -6/Hub_04(d) | Spotted Lightning 13918 | -6/Hub_04(d) | Spotted Lightning 13918 | -6/Hub_04(d) | Entered Factory 13918 | -5/Factory | Evolved 2 slots: Propulsion x1, Utility x1 13947 | -5/Factory | Discovered new exit (range 14) 14017 | -5/Factory | Fabricated Cld. VTOL Module (x1) 14032 | -5/Factory | Identified exit to DSF 14041 | -5/Factory | Entered DSF 14070 | -5/DSF | Additional patrols routed to DSF 14151 | -5/DSF | Build established: Sprinter 14152 | -5/DSF | Discovered new exit (range 15) 14156 | -5/DSF | Entered Garrison 14228 | -5/Garrison | Spotted B-75 Beast 14241 | -5/Garrison | Discovered new exit (range 8) 14243 | -5/Garrison | Attempted to access garrison exit controls, blocked by remote lockdown 14265 | -5/Garrison | Triggered checkpoint 14274 | -5/Garrison | Found embedded Infiltrators 14329 | -5/Garrison | Discovered new exit (range 12) 14332 | -5/Garrison | Attempted to access garrison exit controls, blocked by remote lockdown 14340 | -5/Garrison | Triggered checkpoint 14348 | -5/Garrison | Discovered new exit (range 15) 14351 | -5/Garrison | Entered Factory 14351 | -4/Factory | Evolved 2 slots: Utility x2 14359 | -4/Factory | Discovered new exit (range 15) 14379 | -4/Factory | Discovered new exit (range 16) 14391 | -4/Factory | Discovered new exit (range 6) 14403 | -4/Factory | Identified exit to Upper Caves 14405 | -4/Factory | Identified exit to Research 14408 | -4/Factory | Sucked down chute 14408 | -4/Factory | Entered Waste 14415 | -4/Waste | Spotted C-40 Crusher 14415 | -4/Waste | Found Unknown Protection 14415 | -4/Waste | Identified Adv. Powered Armor 14423 | -4/Waste | EMP discharged 14423 | -4/Waste | Spotted C-40 Crusher 14425 | -4/Waste | Spotted C-40 Crusher 14428 | -4/Waste | Spotted C-40 Crusher 14431 | -4/Waste | Discovered new exit (range 15) 14432 | -4/Waste | Spotted C-40 Crusher 14435 | -4/Waste | Identified exit to Factory 14435 | -4/Waste | Entered Factory 14505 | -4/Factory | Repaired Adv. Powered Armor 14594 | -4/Factory | Repaired Broken Cld. VTOL Module 14600 | -4/Factory | Identified exit to Armory 14627 | -4/Factory | Found Prototype Processor 14627 | -4/Factory | Identified Exp. Signal Interpreter 14651 | -4/Factory | System corruption reached 10% 14727 | -4/Factory | Found Exp. Signal Interpreter 14903 | -4/Factory | Spotted B-86 Titan 14909 | -4/Factory | Crushed by falling debris 14939 | -4/Factory | Entered Upper Caves 14940 | -4/Upper Caves | Lost 4 parts (2n2u) 14942 | -4/Upper Caves | Learned Research emergency access door positions 14949 | -4/Upper Caves | Learned Research garrison access intel 14978 | -4/Upper Caves | Encountered a Warlord checkpoint 15044 | -4/Upper Caves | Discovered new exit (range 15) 15047 | -4/Upper Caves | Identified exit to Upper Caves 15100 | -4/Upper Caves | Entered another Upper Caves area 15100 | -4/Upper Caves | Accompanied by 1 ally 15207 | -4/Upper Caves | Discovered new exit (range 10) 15210 | -4/Upper Caves | Identified exit to Warlord 15286 | -4/Upper Caves | Entered Warlord 15298 | -4/Warlord | System corruption cleaned by Quarantine Array 15372 | -4/Warlord | Learned location of Armory (-4) 15372 | -4/Warlord | Learned Armory trap positions 15372 | -4/Warlord | Learned 4 Quarantine zone layouts 15372 | -4/Warlord | Learned 4 Command zone layouts 15373 | -4/Warlord | Learned Armory security intel 15373 | -4/Warlord | Learned Research recycling unit intel 15424 | -4/Warlord | Opened Warlord's prototype stash 15431 | -4/Warlord | Found Prototype Hackware 15431 | -4/Warlord | Identified Ghost Barrier 15440 | -4/Warlord | Found Prototype Processor 15440 | -4/Warlord | Identified Exp. Target Analyzer 15443 | -4/Warlord | Found Prototype Processor 15443 | -4/Warlord | Identified Exp. Targeting Computer 15463 | -4/Warlord | Warlord's base attacked by MAIN.C 15475 | -4/Warlord | Met Warlord 15721 | -4/Warlord | Opened side exit 15722 | -4/Warlord | Build established: Hacker-Sprinter 15733 | -4/Warlord | Discovered new exit (range 8) 15734 | -4/Warlord | Identified exit to Proximity Caves 15734 | -4/Warlord | Entered Proximity Caves 15797 | -3/Proximity Caves | Discovered exit to Research (range 7) 15798 | -3/Proximity Caves | Entered Research 15798 | -3/Research | Evolved 2 slots: Power x1, Propulsion x1 15800 | -3/Research | Loaded intel: 5 recycling unit locations 15801 | -3/Research | Loaded intel: 4 garrison access locations 15801 | -3/Research | Identified exit to Testing 15876 | -3/Research | Identified exit to DSF 15876 | -3/Research | Entered DSF 15903 | -3/DSF | Additional patrols routed to DSF 15921 | -3/DSF | Discovered new exit (range 15) 15932 | -3/DSF | Entered Research 15932 | -2/Research | Warlord forces began assault on 0b10 15932 | -2/Research | Evolved 2 slots: Utility x2 15940 | -2/Research | Identified exit to Quarantine 15951 | -2/Research | Lost 3 parts (2u1w) 15957 | -2/Research | Distinguished unit "Death Star" dispatched to help 15957 | -2/Research | Distinguished unit "Cat Herders" dispatched to help 16042 | -2/Research | Research machine network offline 16056 | -2/Research | Fabricated Cld. VTOL Module? 16064 | -2/Research | Lost 9 allies 16155 | -2/Research | Found Prototype Device 16155 | -2/Research | Identified Exp. Thermal Shield 16324 | -2/Research | Build established: Hacker-Gunner 16508 | -2/Research | Spotted Striker 16510 | -2/Research | Spotted Striker 16554 | -2/Research | Lost 6 allies 16685 | -2/Research | Borebot progress halted 16931 | -2/Research | Build established: Hacker-Tank 17020 | -2/Research | Discovered new exit (range 8) 17263 | -2/Research | Spotted Striker 17295 | -2/Research | Discovered new exit (range 19) 17304 | -2/Research | Lost 4 allies 17307 | -2/Research | Found Prototype Processor 17307 | -2/Research | Identified Exp. Core Analyzer 17318 | -2/Research | Spotted Executioner 17448 | -2/Research | Given Cave Seal Controls access code 17477 | -2/Research | Entered Access 17477 | -1/Access | Evolved 2 slots: Weapon x2 17777 | -1/Access | Build established: Hacker-Executioner 19013 | -1/Access | Identified exit to Command 19110 | -1/Access | Entered Command 19430 | -1/Command | Build established: Scavenger-Executioner 19710 | -1/Command | Found Prototype Protection 19710 | -1/Command | Identified Centrium Heavy Armor Plating 19726 | -1/Command | Found Centrium Heavy Armor Plating 20007 | -1/Command | System corruption reached 10% 20110 | -1/Command | First assault squad dispatched 20422 | -1/Command | Disengaged cave seal 20428 | -1/Command | Welcomed Warlord to Command 20930 | -1/Command | Spotted Combat Programmer 20939 | -1/Command | Spotted M Guard 20941 | -1/Command | Spotted M Guard 20957 | -1/Command | All MAIN.C guards destroyed 20982 | -1/Command | Lost 3 parts (3u) 20985 | -1/Command | Lost 13 allies 20998 | -1/Command | Warlord commented on Warlord statues 20999 | -1/Command | Found Prototype Energy Cannon 20999 | -1/Command | Identified Cld. Nova Cannon 21003 | -1/Command | Found Prototype Reactor 21003 | -1/Command | Identified Zero-point Reactor 21172 | -1/Command | Found Prototype Energy Cannon 21259 | -1/Command | Met MAIN.C 21277 | -1/Command | 0b10 Conduit disabled 21297 | -1/Command | Destroyed MAIN.C Shell 21300 | -1/Command | MAIN.C activated Command garrisons 21349 | -1/Command | Identified EMDS 21400 | -1/Command | Lost 5 allies 21420 | -1/Command | Core integrity fell below 50% 21426 | -1/Command | Core integrity fell below 20% 21429 | -1/Command | Destroyed by MAIN.C with Improved Heavy Machine Gun Last Messages --------------- 21408_ MAIN.C knocked back. 21410_ Micro-nuke Launcher destroyed. 21410_ Knocked back. 21413_ Cld. Nova Cannon destroyed. 21413_ Enh. Hardcell Cannon destroyed. 21413_ Enh. Biometal Leg destroyed. 21413_ Biometal Leg destroyed. 21413_ Knocked back. 21415_ Imp. Armor Integrity Analyzer broken. 21415_ Overheating: Short circuit. 21416_ Knocked back. 21417_ Overheating: System interference. 21417_ Exp. Core Analyzer temporarily disabled. 21418_ Zero-point Reactor destroyed. 21419_ Knocked back. 21424_ Slammed into MAIN.C. 21425_ System corrupted: Energy discharge (-21). 21425_ Slammed into MAIN.C. 21426_ Knocked back. 21427_ Slammed into MAIN.C. Map ----- +----------------------------------------------------+ | ?????????????????????????????????????????????????? | | ?????????????????????????????????????????????????? | | ?????????????????????????????????????????????????? | | ?????????????????????????????????????????????????? | | ?????????????????????????????????????????????????? | | ?????????????????????????????????????????????????? | | ?????????????????????????????????????????????????? | | ?????????????????????????????????????????????????? | | ?????????????????????????????????????????????????? | | ?????????????????????????????????????????????????? | | ?????????????????????????????????????????????????? | | ?????????????????????????????????????????????????? | | ?????????????????????????????????????????????????? | | ?????????????????????????????????????????????????? | | ?????????????????????????????????????????????????? | | ?????????????????????????????????????????????????? | | ?????????????????????????????????????????????????? | | ?????????????????????????????????????????????????? | | ?????????????????????????????????????????????????? | | ?????????????????????????????????????????????????? | | ???????????????????#######################???????? | | ???????????????????#""""""" """" #???????? | | ???????????????????#"" "" #???????? | | ???????????????????#"""" "" ######### | | ???????????????????#"""" % +" | | ???????????????????#" M@ % +%" % | | ???????????????????#"" % =g!%!+% | | ???????????????????#"" % ! | *%g = ######### | | ???????????????????# | *|=g %#???????? | | ???????????????????# | g g #???????? | | ???????????????????# " % #???????? | | ???????????????????#""" % "" #???????? | | + #?# ????#"" % """#???????? | | ## #?# w ????# """"#???????? | | ## ### ????# % " #???????? | | # #######+#????# " " #???????? | | # ????" " " "%"" " " #???????? | | + ????" " " " " "" #???????? | | # ????" " " " " #???????? | | # #########????# """""""""" " ????????? | | #######????????????# " """ " """"""""#???????? | | #??????????????????# """ " " " ?????????? | | #??????????????????##??????#############?????????? | | ?????????????????????????????????????????????????? | | ?????????????????????????????????????????????????? | | ?????????????????????????????????????????????????? | | ?????????????????????????????????????????????????? | | ?????????????????????????????????????????????????? | | ?????????????????????????????????????????????????? | | ?????????????????????????????????????????????????? | +----------------------------------------------------+ Best States ------------- Heat Dissipation 121 Energy Generation 53 Energy Capacity 600 Matter Stores 300 Matter Capacity 300 Sight Range 20 Robot Scan Range 16 Terrain Scan Density 10 Power Amplification 20 Base Temperature (-) 200 Armor Coverage 1200 Resistance: KI 25 Resistance: EX 50 Utility Shielding 66 Weapon Shielding 90 Evasion (%) 75 Targeting Accuracy 12 Core Analysis 8 Armor Integrity Analysis 40 Recoil Reduction 6 Offensive Hacking 12 Defensive Hacking 20 Authchip Count 2 Item Schematics ----------------- Recoil Stabilizer | -8/Materials | Scanalyzed Cld. VTOL Module | -7/Factory | Scanalyzed Combat Drone Bay | -7/Data Miner | Free Lgt. Regenerative Plating | -7/Data Miner | Free Multireflex Exoskeleton | -7/Data Miner | Free Gravity Neutralizer | -7/Data Miner | Free Scatter Rocket Array | -7/Data Miner | Free Arm. Medium Treads | -7/Data Miner | Free Imp. Coolant Injector | -7/Data Miner | Free Enh. Gauss Cannon | -7/Data Miner | Free Adv. Drone Bay | -7/Data Miner | Free Railgun | -7/Data Miner | Free Lrn. Missile Launcher | -5/Factory | Scanalyzed Adv. Powered Armor | -4/Factory | Scanalyzed Robot Schematics ------------------ L-41 Fighter | -7/Data Miner | Free E-15 Imp | -7/Data Miner | Free S-27 Virus | -7/Data Miner | Free X-62 Marksman | -7/Data Miner | Free A-15 Conveyor | -7/Data Miner | Free Fabricated ------------ B-48 Gladiator | x3 | -6/Factory | Preloaded Cld. VTOL Module | x1 | -5/Factory Cld. VTOL Module | x1 | -2/Research | Authchip Repaired ---------- Lgt. Treads | 27% | -10/Materials Com. Wheel | 30% | -10/Materials Carbon-fiber Leg | 69% | -8/Materials Carbon-fiber Leg | 53% | -8/Materials Carbon-fiber Leg | 67% | -8/Materials Hvy. Assault Rifle | 43% | -8/Materials Cld. VTOL Module | 61% | -6/Factory Adv. Powered Armor | 18% | -4/Factory Cld. VTOL Module | 1% | -4/Factory | Broken Studied --------- Com. Wheel | -9/Materials | Hacked Assault Rifle | -9/Materials | Hacked Imp. Ion Engine | -9/Materials | Hacked Grenade Launcher | -9/Materials | Hacked Minigun | -8/Materials | Hacked Lgt. Fission Core | -5/Factory | Hacked Alien Tech Used ----------------- None Achievements -------------- None Challenges ------------ None Game ------ Seed CargoPartitionImmobilizer Manual? 0 Play Time 05:07:36 Cumulative 167.2 hours Start 2026.04.17 @ 13:48:47 End 2026.04.17 @ 23:55:32 Sessions 9 Manual Loads 0 Difficulty Rogue Special Mode None Game No. 106 Rogue 106 Adventurer 0 Explorer 0 Win Type - Total 5 Types 3/0/1/1/0/0/0/0/0/0 Lore% 63 Gallery% 54 Achievement% 48 Wizard Run 0 Options --------- Layout 2 ASCII 0 Keyboard 1 Movement Arrows Keybinds 0 Fullscreen 2 Font 24/Terminus Map View 50x44 Zoom Use 0% Tactical HUD 1 Map Filters NONE Filters NONE Steam 1 RUN: a25bded4-5196-4004-bedc-e5a661714f81